Workbook

Sheet MECSB
B1: TYPE THE NAME OF YOUR LAB HERE
B3: PMT LINEARITY QC RECORD | R3: Normalization Graph for Instrument B
J4: TABLE NO. 1 | M4: CROSS CALIBRATION TABLE
B5: PEAK # | C5: CH # | D5: MECSB | E5: MECSB LOG | F5: CALC. | G5: RESIDUAL | H5: CALC. MECSB | J5: 1024 REL. CH# | M5: FOR UNKNOWN SAMPLES | S5: PEAK # | T5: CH # | U5: MECSB | V5: MECSB LOG | W5: CALC. | X5: RESIDUAL | Y5: CALC. MECSB | AA5: CROSS CALIBRATION TABLE
B6: 1 | C6: 98.73798408 | F6: =H$15*C6+H$16 -> 1.806863535 | H6: =10^F6 -> 64.10081257 | J6: to 256 REL. CH# | M6: Sample | N6: CH# | O6: Calc. | P6: Calc. MECSB | S6: 1 | T6: =M50 -> 0 | U6: =O50 -> 0.49816473 | V6: =LOG10(U6) -> -0.3026270237 | W6: =Y$15*T6+Y$16 ->  | X6: =((ABS(W6-V6))/W6)*10 ->  | Y6: =10^W6 ->  | AA6: FOR NORMALIZATION GRAPH
B7: 2 | C7: 121.6652637 | D7: 198.0131682 | E7: =LOG10(D7) -> 2.296694073 | F7: =H$15*C7+H$16 -> 2.296694073 | G7: =((ABS(F7-E7))/F7) -> 0 | H7: =10^F7 -> 198.0131682 | J7: CONVERSION | O7: =H$15*N7+H$16 -> -0.3026270237 | P7: =10^O7 -> 0.49816473 | S7: 2 | T7: 0 | U7: 0.49816473 | V7: -0.3026270237 | AA7: Sample | AB7: CH# | AC7: Calc. | AD7: Calc. MECSB
B8: 3 | C8: 134.3291 | D8: 369.1908902 | E8: 2.567250976 | F8: 2.567250976 | G8: 0 | H8: 369.1908902 | J8: 1024 CH# | K8: 256 CH# | O8: -0.3026270237 | P8: 0.49816473 | S8: 3 | T8: 0 | U8: 0.49816473 | V8: -0.3026270237 | AC8: =Y$15*AB8+Y$16 ->  | AD8: =10^AC8 -> 
B9: 4 | C9: 151.5961453 | D9: 863.283163 | E9: 2.936153271 | F9: 2.936153271 | G9: 1.512486471e-16 | H9: 863.283163 | K9: =J9/4 -> 0 | O9: -0.3026270237 | P9: 0.49816473 | S9: 4 | T9: 0 | U9: 0.49816473 | V9: -0.3026270237
B10: 5 | C10: 174.8894749 | D10: 2715.215451 | E10: 3.433804296 | F10: 3.433804296 | G10: 1.293286313e-16 | H10: 2715.215451 | K10: 0 | O10: -0.3026270237 | P10: 0.49816473 | S10: 5 | T10: 0 | U10: 0.49816473 | V10: -0.3026270237
B11: 6 | C11: 195.8391627 | D11: 7609.997513 | E11: 3.881384515 | F11: 3.881384515 | G11: 2.288303095e-16 | H11: 7609.997513 | K11: 0 | O11: -0.3026270237 | P11: 0.49816473 | S11: 6 | T11: 0 | U11: 0.49816473 | V11: -0.3026270237
B12: 7 | C12: 216.0506199 | D12: 20568.03425 | E12: 4.313192787 | F12: 4.313192787 | G12: 4.118426714e-16 | H12: 20568.03425 | K12: 0 | O12: -0.3026270237 | P12: 0.49816473 | S12: 7 | T12: 0 | U12: 0.49816473 | V12: -0.3026270237
B13: 8 | C13: 227.8255293 | D13: 36707.78531 | E13: 4.564758183 | F13: 4.564758183 | G13: 0 | H13: 36707.78531 | K13: 0 | O13: -0.3026270237 | P13: 0.49816473 | S13: 8 | T13: 0 | U13: 0.49816473 | V13: -0.3026270237
E14: Ave Residual | G14: =AVERAGE(G7:G13) -> 1.316071799e-16 | K14: 0 | O14: -0.3026270237 | P14: 0.49816473 | V14: Ave Residual | X14: =AVERAGE(X6:X11) -> 
G15: Slope: | H15: =SLOPE(E7:E13,C7:C13) -> 0.02136452935 | K15: 0 | O15: -0.3026270237 | P15: 0.49816473 | X15: Slope: | Y15: =SLOPE(V7:V11,T7:T11) -> 
G16: Intercept: | H16: =INTERCEPT(E7:E13,C7:C13) -> -0.3026270237 | K16: 0 | O16: -0.3026270237 | P16: 0.49816473 | X16: Intercept: | Y16: =INTERCEPT(V7:V11,T7:T11) -> 
G17: Rsq: | H17: =RSQ(E7:E13,C7:C13) -> 1 | O17: -0.3026270237 | P17: 0.49816473 | X17: Rsq: | Y17: =RSQ(V7:V11,T7:T11) -> 
O18: -0.3026270237 | P18: 0.49816473
J19: TABLE NO. 2
J20: 1024 MEAN CH# | M20: CONVERTED VALUES
J21: to 256 REL. CH# | M21: CAN BE COPIED TO
J22: CONVERSION | M22: THE CH# COLUMN BY
J23: 1024 CH# | K23: 256 CH# | M23: SELECTING THE CELLS
K24: =LOG10(J24*10)*(64) ->  | M24: TO BE COPIED; THEN,
M25: CLICKING [COPY],
M26: [PASTE SPECIAL], AND
M27: FINALLY [PASTE VALUE]
J34: TABLE NO. 3 | M34: TABLE NO. 5
J35: 104 MEAN CH# | M35: Determination of the
J36: to 256 REL. CH# | M36: MECSB/CH# for the
J37: CONVERSION | M37: normalization cell or particle
J38: 104 CH# | K38: 256 CH# | M38: 256 CH# | N38: 104 CH# | O38: Calc. MECSB | P38: MECSB/CH#
K39: =LOG10(J39)*(64) ->  | M39: =N7 -> 0 | N39: =10^(4*(M39/256)) -> 1 | O39: =P7 -> 0.49816473 | P39: =O39/N39 -> 0.49816473
M40: =N8 -> 0 | N40: =10^(4*(M40/256)) -> 1 | O40: =P8 -> 0.49816473 | P40: =O40/N40 -> 0.49816473
M41: =N9 -> 0 | N41: =10^(4*(M41/256)) -> 1 | O41: =P9 -> 0.49816473 | P41: =O41/N41 -> 0.49816473
M42: =N10 -> 0 | N42: =10^(4*(M42/256)) -> 1 | O42: =P10 -> 0.49816473 | P42: =O42/N42 -> 0.49816473
M43: =N11 -> 0 | N43: =10^(4*(M43/256)) -> 1 | O43: =P11 -> 0.49816473 | P43: =O43/N43 -> 0.49816473
M45: TABLE NO. 6
A46: Rainbow Calibration Particles (RCP-30-5A) | E46: Lot No.: | G46: File # | M46: Determination of New MECSB
A47: Acceptable: | M47: values for RCP-30-5A
A49: Action taken if not linear: | D49: By: | G49: Date: | J49: TABLE NO. 4 | M49: 256 CH# | N49: 104 CH# | O49: New MECSB
J50: 105 MEAN CH# | N50: =10^(4*(M50/256)) -> 1 | O50: =P39*N50 -> 0.49816473
J51: to 256 REL. CH# | N51: 1 | O51: =P39*N51 -> 0.49816473
J52: CONVERSION | N52: 1 | O52: =P39*N52 -> 0.49816473
J53: 105 CH# | K53: 256 CH# | N53: 1 | O53: =P39*N53 -> 0.49816473
K54: =LOG10(J54)*(256/LOG10(262144)) ->  | N54: 1 | O54: =P39*N54 -> 0.49816473
N55: 1 | O55: =P39*N55 -> 0.49816473
N56: 1 | O56: =P40*N56 -> 0.49816473
N57: 1 | O57: =P41*N57 -> 0.49816473

Sheet MEBFP
B1: TYPE THE NAME OF YOUR LAB HERE
B3: PMT LINEARITY QC RECORD | R3: Normalization Graph for Instrument B
J4: TABLE NO. 1 | M4: CROSS CALIBRATION TABLE
B5: PEAK # | C5: CH # | D5: MEBFP | E5: MEBFP LOG | F5: CALC. | G5: RESIDUAL | H5: CALC. MEBFP | J5: 1024 REL. CH# | M5: FOR UNKNOWN SAMPLES | S5: PEAK # | T5: CH # | U5: MEBFP | V5: MEBFP LOG | W5: CALC. | X5: RESIDUAL | Y5: CALC. MEBFP | AA5: CROSS CALIBRATION TABLE
B6: 1 | C6: 63.42302747 | F6: =H$15*C6+H$16 -> 2.111462853 | H6: =10^F6 -> 129.2596134 | J6: to 256 REL. CH# | M6: Sample | N6: CH# | O6: Calc. | P6: Calc. MEBFP | S6: 1 | T6: =M50 -> 0 | U6: =O50 -> 4.871552535 | V6: =LOG10(U6) -> 0.6876673903 | W6: =Y$15*T6+Y$16 ->  | X6: =((ABS(W6-V6))/W6)*10 ->  | Y6: =10^W6 ->  | AA6: FOR NORMALIZATION GRAPH
B7: 2 | C7: 96.44600481 | D7: 712.5279041 | E7: =LOG10(D7) -> 2.852801877 | F7: =H$15*C7+H$16 -> 2.852801877 | G7: =((ABS(F7-E7))/F7) -> 4.670032084e-16 | H7: =10^F7 -> 712.5279041 | J7: CONVERSION | O7: =H$15*N7+H$16 -> 0.6876673903 | P7: =10^O7 -> 4.871552535 | S7: 2 | T7: 0 | U7: 4.871552535 | V7: 0.6876673903 | AA7: Sample | AB7: CH# | AC7: Calc. | AD7: Calc. MEBFP
B8: 3 | C8: 111.934076 | D8: 1586.706123 | E8: 3.200496498 | F8: 3.200496498 | G8: 2.775126985e-16 | H8: 1586.706123 | J8: 1024 CH# | K8: 256 CH# | O8: 0.6876673903 | P8: 4.871552535 | S8: 3 | T8: 0 | U8: 4.871552535 | V8: 0.6876673903 | AC8: =Y$15*AB8+Y$16 ->  | AD8: =10^AC8 -> 
B9: 4 | C9: 130.594053 | D9: 4162.917732 | E9: 3.619397828 | F9: 3.619397828 | G9: 3.680909623e-16 | H9: 4162.917732 | K9: =J9/4 -> 0 | O9: 0.6876673903 | P9: 4.871552535 | S9: 4 | T9: 0 | U9: 4.871552535 | V9: 0.6876673903
B10: 5 | C10: 154.9592929 | D10: 14668.22886 | E10: 4.166377677 | F10: 4.166377677 | G10: 4.263552124e-16 | H10: 14668.22886 | K10: 0 | O10: 0.6876673903 | P10: 4.871552535 | S10: 5 | T10: 0 | U10: 4.871552535 | V10: 0.6876673903
B11: 6 | C11: 177.1278122 | D11: 46136.31806 | E11: 4.664042932 | F11: 4.664042932 | G11: 1.904310129e-16 | H11: 46136.31806 | K11: 0 | O11: 0.6876673903 | P11: 4.871552535 | S11: 6 | T11: 0 | U11: 4.871552535 | V11: 0.6876673903
B12: 7 | C12: 200.5065152 | D12: 154481.2697 | E12: 5.18887583 | F12: 5.18887583 | G12: 1.711697194e-16 | H12: 154481.2697 | K12: 0 | O12: 0.6876673903 | P12: 4.871552535 | S12: 7 | T12: 0 | U12: 4.871552535 | V12: 0.6876673903
B13: 8 | C13: 217.9038497 | D13: 379692.3626 | E13: 5.579431862 | F13: 5.579431862 | G13: 1.591879678e-16 | H13: 379692.3626 | K13: 0 | O13: 0.6876673903 | P13: 4.871552535 | S13: 8 | T13: 0 | U13: 4.871552535 | V13: 0.6876673903
E14: Ave Residual | G14: =AVERAGE(G7:G13) -> 2.942501117e-16 | K14: 0 | O14: 0.6876673903 | P14: 4.871552535 | V14: Ave Residual | X14: =AVERAGE(X6:X11) -> 
G15: Slope: | H15: =SLOPE(E7:E13,C7:C13) -> 0.02244918792 | K15: 0 | O15: 0.6876673903 | P15: 4.871552535 | X15: Slope: | Y15: =SLOPE(V7:V11,T7:T11) -> 
G16: Intercept: | H16: =INTERCEPT(E7:E13,C7:C13) -> 0.6876673903 | K16: 0 | O16: 0.6876673903 | P16: 4.871552535 | X16: Intercept: | Y16: =INTERCEPT(V7:V11,T7:T11) -> 
G17: Rsq: | H17: =RSQ(E7:E13,C7:C13) -> 1 | O17: 0.6876673903 | P17: 4.871552535 | X17: Rsq: | Y17: =RSQ(V7:V11,T7:T11) -> 
O18: 0.6876673903 | P18: 4.871552535
J19: TABLE NO. 2
J20: 1024 MEAN CH# | M20: CONVERTED VALUES
J21: to 256 REL. CH# | M21: CAN BE COPIED TO
J22: CONVERSION | M22: THE CH# COLUMN BY
J23: 1024 CH# | K23: 256 CH# | M23: SELECTING THE CELLS
K24: =LOG10(J24*10)*(64) ->  | M24: TO BE COPIED; THEN,
M25: CLICKING [COPY],
M26: [PASTE SPECIAL], AND
M27: FINALLY [PASTE VALUE]
J34: TABLE NO. 3 | M34: TABLE NO. 5
J35: 104 MEAN CH# | M35: Determination of the
J36: to 256 REL. CH# | M36: MEBFP/CH# for the
J37: CONVERSION | M37: normalization cell or particle
J38: 104 CH# | K38: 256 CH# | M38: 256 CH# | N38: 104 CH# | O38: Calc. MEBFP | P38: MEBFP/CH#
K39: =LOG10(J39)*(64) ->  | M39: =N7 -> 0 | N39: =10^(4*(M39/256)) -> 1 | O39: =P7 -> 4.871552535 | P39: =O39/N39 -> 4.871552535
M40: =N8 -> 0 | N40: =10^(4*(M40/256)) -> 1 | O40: =P8 -> 4.871552535 | P40: =O40/N40 -> 4.871552535
M41: =N9 -> 0 | N41: =10^(4*(M41/256)) -> 1 | O41: =P9 -> 4.871552535 | P41: =O41/N41 -> 4.871552535
M42: =N10 -> 0 | N42: =10^(4*(M42/256)) -> 1 | O42: =P10 -> 4.871552535 | P42: =O42/N42 -> 4.871552535
M43: =N11 -> 0 | N43: =10^(4*(M43/256)) -> 1 | O43: =P11 -> 4.871552535 | P43: =O43/N43 -> 4.871552535
M45: TABLE NO. 6
A46: Rainbow Calibration Particles (RCP-30-5A) | E46: Lot No.: | G46: File # | M46: Determination of New MEBFP
A47: Acceptable: | M47: values for RCP-30-5A
A49: Action taken if not linear: | D49: By: | G49: Date: | J49: TABLE NO. 4 | M49: 256 CH# | N49: 104 CH# | O49: New MEBFP
J50: 105 MEAN CH# | N50: =10^(4*(M50/256)) -> 1 | O50: =P39*N50 -> 4.871552535
J51: to 256 REL. CH# | N51: 1 | O51: =P39*N51 -> 4.871552535
J52: CONVERSION | N52: 1 | O52: =P39*N52 -> 4.871552535
J53: 105 CH# | K53: 256 CH# | N53: 1 | O53: =P39*N53 -> 4.871552535
K54: =LOG10(J54)*(256/LOG10(262144)) ->  | N54: 1 | O54: =P39*N54 -> 4.871552535
N55: 1 | O55: =P39*N55 -> 4.871552535
N56: 1 | O56: =P40*N56 -> 4.871552535
N57: 1 | O57: =P41*N57 -> 4.871552535

Sheet MEFL
B1: TYPE THE NAME OF YOUR LAB HERE
B3: PMT LINEARITY QC RECORD | R3: Normalization Graph for Instrument B
J4: TABLE NO. 1 | M4: CROSS CALIBRATION TABLE
B5: PEAK # | C5: CH # | D5: MEFL | E5: MEFL LOG | F5: CALC. | G5: RESIDUAL | H5: CALC. MEFL | J5: 1024 REL. CH# | M5: FOR UNKNOWN SAMPLES | S5: PEAK # | T5: CH # | U5: MEFL | V5: MEFL LOG | W5: CALC. | X5: RESIDUAL | Y5: CALC. MEFL | AA5: CROSS CALIBRATION TABLE
B6: 1 | C6: 58.13280485 | F6: =H$15*C6+H$16 -> 1.754507902 | H6: =10^F6 -> 56.82087299 | J6: to 256 REL. CH# | M6: Sample | N6: CH# | O6: Calc. | P6: Calc. MEFL | S6: 1 | T6: =M50 -> 0 | U6: =O50 -> 3.306989851 | V6: =LOG10(U6) -> 0.5194328621 | W6: =Y$15*T6+Y$16 ->  | X6: =((ABS(W6-V6))/W6)*10 ->  | Y6: =10^W6 ->  | AA6: FOR NORMALIZATION GRAPH
B7: 2 | C7: 107.5518923 | D7: 637.4607936 | E7: =LOG10(D7) -> 2.804453479 | F7: =H$15*C7+H$16 -> 2.804453479 | G7: =((ABS(F7-E7))/F7) -> 1.583514268e-16 | H7: =10^F7 -> 637.4607936 | J7: CONVERSION | O7: =H$15*N7+H$16 -> 0.5194328621 | P7: =10^O7 -> 3.306989851 | S7: 2 | T7: 0 | U7: 3.306989851 | V7: 0.5194328621 | AA7: Sample | AB7: CH# | AC7: Calc. | AD7: Calc. MEFL
B8: 3 | C8: 127.7581308 | D8: 1712.97164 | E8: 3.233750173 | F8: 3.233750173 | G8: 1.373294739e-16 | H8: 1712.97164 | J8: 1024 CH# | K8: 256 CH# | O8: 0.5194328621 | P8: 3.306989851 | S8: 3 | T8: 0 | U8: 3.306989851 | V8: 0.5194328621 | AC8: =Y$15*AB8+Y$16 ->  | AD8: =10^AC8 -> 
B9: 4 | C9: 148.6394469 | D9: 4757.616092 | E9: 3.677389394 | F9: 3.677389394 | G9: 1.207620848e-16 | H9: 4757.616092 | K9: =J9/4 -> 0 | O9: 0.5194328621 | P9: 3.306989851 | S9: 4 | T9: 0 | U9: 3.306989851 | V9: 0.5194328621
B10: 5 | C10: 173.5543759 | D10: 16096.28849 | E10: 4.206725747 | F10: 4.206725747 | G10: 0 | H10: 16096.28849 | K10: 0 | O10: 0.5194328621 | P10: 3.306989851 | S10: 5 | T10: 0 | U10: 3.306989851 | V10: 0.5194328621
B11: 6 | C11: 195.2415354 | D11: 46503.50804 | E11: 4.667485716 | F11: 4.667485716 | G11: 0 | H11: 46503.50804 | K11: 0 | O11: 0.5194328621 | P11: 3.306989851 | S11: 6 | T11: 0 | U11: 3.306989851 | V11: 0.5194328621
B12: 7 | C12: 216.6458032 | D12: 132505.9683 | E12: 5.12223544 | F12: 5.12223544 | G12: 1.73396641e-16 | H12: 132505.9683 | K12: 0 | O12: 0.5194328621 | P12: 3.306989851 | S12: 7 | T12: =M56 -> 0 | U12: =O56 -> 3.306989851 | V12: 0.5194328621 | X12: =((ABS(W12-V12))/W12)*10 ->  | Y12: =10^W12 -> 
B13: 8 | C13: 232.1230649 | D13: 282527.9856 | E13: 5.451061473 | F13: 5.451061473 | G13: 1.629367829e-16 | H13: 282527.9856 | K13: 0 | O13: 0.5194328621 | P13: 3.306989851 | S13: 8 | T13: =M57 -> 0 | U13: =O57 -> 3.306989851 | V13: 0.5194328621 | X13: =((ABS(W13-V13))/W13)*10 ->  | Y13: =10^W13 -> 
E14: Ave Residual | G14: =AVERAGE(G7:G13) -> 1.07539487e-16 | K14: 0 | O14: 0.5194328621 | P14: 3.306989851 | V14: Ave Residual | X14: =AVERAGE(X6:X11) -> 
G15: Slope: | H15: =SLOPE(E7:E13,C7:C13) -> 0.02124575002 | K15: 0 | O15: 0.5194328621 | P15: 3.306989851 | X15: Slope: | Y15: =SLOPE(V7:V11,T7:T11) -> 
G16: Intercept: | H16: =INTERCEPT(E7:E13,C7:C13) -> 0.5194328621 | K16: 0 | O16: 0.5194328621 | P16: 3.306989851 | X16: Intercept: | Y16: =INTERCEPT(V7:V11,T7:T11) -> 
G17: Rsq: | H17: =RSQ(E7:E13,C7:C13) -> 1 | O17: 0.5194328621 | P17: 3.306989851 | X17: Rsq: | Y17: =RSQ(V7:V11,T7:T11) -> 
O18: 0.5194328621 | P18: 3.306989851
J19: TABLE NO. 2
J20: 1024 MEAN CH# | M20: CONVERTED VALUES
J21: to 256 REL. CH# | M21: CAN BE COPIED TO
J22: CONVERSION | M22: THE CH# COLUMN BY
J23: 1024 CH# | K23: 256 CH# | M23: SELECTING THE CELLS
K24: =LOG10(J24*10)*(64) ->  | M24: TO BE COPIED; THEN,
M25: CLICKING [COPY],
M26: [PASTE SPECIAL], AND
M27: FINALLY [PASTE VALUE]
J34: TABLE NO. 3 | M34: TABLE NO. 5
J35: 104 MEAN CH# | M35: Determination of the
J36: to 256 REL. CH# | M36: MEFL/CH# for the
J37: CONVERSION | M37: normalization cell or particle
J38: 104 CH# | K38: 256 CH# | M38: 256 CH# | N38: 104 CH# | O38: Calc. MEFL | P38: MEFL/CH#
K39: =LOG10(J39)*(64) ->  | M39: =N7 -> 0 | N39: =10^(4*(M39/256)) -> 1 | O39: =P7 -> 3.306989851 | P39: =O39/N39 -> 3.306989851
M40: =N8 -> 0 | N40: =10^(4*(M40/256)) -> 1 | O40: =P8 -> 3.306989851 | P40: =O40/N40 -> 3.306989851
M41: =N9 -> 0 | N41: =10^(4*(M41/256)) -> 1 | O41: =P9 -> 3.306989851 | P41: =O41/N41 -> 3.306989851
M42: =N10 -> 0 | N42: =10^(4*(M42/256)) -> 1 | O42: =P10 -> 3.306989851 | P42: =O42/N42 -> 3.306989851
M43: =N11 -> 0 | N43: =10^(4*(M43/256)) -> 1 | O43: =P11 -> 3.306989851 | P43: =O43/N43 -> 3.306989851
M45: TABLE NO. 6
A46: Rainbow Calibration Particles (RCP-30-5A) | E46: Lot No.: | G46: File # | M46: Determination of New MEFL
A47: Acceptable: | M47: values for RCP-30-5A
A49: Action taken if not linear: | D49: By: | G49: Date: | J49: TABLE NO. 4 | M49: 256 CH# | N49: 104 CH# | O49: New MEFL
J50: 105 MEAN CH# | N50: =10^(4*(M50/256)) -> 1 | O50: =P39*N50 -> 3.306989851
J51: to 256 REL. CH# | N51: 1 | O51: =P39*N51 -> 3.306989851
J52: CONVERSION | N52: 1 | O52: =P39*N52 -> 3.306989851
J53: 105 CH# | K53: 256 CH# | N53: 1 | O53: =P39*N53 -> 3.306989851
K54: =LOG10(J54)*(256/LOG10(262144)) ->  | N54: 1 | O54: =P39*N54 -> 3.306989851
K55: =LOG10(J55)*(256/LOG10(262144)) ->  | N55: 1 | O55: =P39*N55 -> 3.306989851
N56: 1 | O56: =P40*N56 -> 3.306989851
N57: 1 | O57: =P41*N57 -> 3.306989851

Sheet MEPE (488nm Ex)
B1: TYPE THE NAME OF YOUR LAB HERE
B3: PMT LINEARITY QC RECORD | S3: Normalization Graph for Instrument B
J4: TABLE NO. 1 | M4: CROSS CALIBRATION TABLE
B5: PEAK # | C5: CH # | D5: MEPE | E5: MEPE LOG | F5: CALC. | G5: RESIDUAL | H5: CALC. MEPE | J5: 1024 REL. CH# | M5: FOR UNKNOWN SAMPLES | S5: PEAK # | T5: CH # | U5: MEPE | V5: MEPE LOG | W5: CALC. | X5: RESIDUAL | Y5: CALC. MEPE | AA5: CROSS CALIBRATION TABLE
B6: 1 | C6: 100.7994715 | F6: =H$15*C6+H$16 -> 2.245416702 | H6: =10^F6 -> 175.9611135 | J6: to 256 REL. CH# | M6: Sample | N6: CH# | O6: Calc. | P6: Calc. MEPE | S6: 1 | T6: =M50 -> 0 | U6: =O50 -> 0.9123653869 | V6: =LOG10(U6) -> -0.03983119925 | W6: =Y$15*T6+Y$16 ->  | X6: =((ABS(W6-V6))/W6)*10 ->  | Y6: =10^W6 ->  | AA6: FOR NORMALIZATION GRAPH
B7: 2 | C7: 120.7159471 | D7: 497.6771268 | E7: =LOG10(D7) -> 2.696947681 | F7: =H$15*C7+H$16 -> 2.696947681 | G7: =((ABS(F7-E7))/F7) -> 0 | H7: =10^F7 -> 497.6771268 | J7: CONVERSION | O7: =H$15*N7+H$16 -> -0.03983119925 | P7: =10^O7 -> 0.9123653869 | S7: 2 | T7: =M51 -> 0 | U7: =O51 -> 0.9123653869 | V7: -0.03983119925 | AA7: Sample | AB7: CH# | AC7: Calc. | AD7: Calc. MEPE
B8: 3 | C8: 136.5056356 | D8: 1134.799988 | E8: 3.054919323 | F8: 3.054919323 | G8: 1.453685557e-16 | H8: 1134.799988 | J8: 1024 CH# | K8: 256 CH# | O8: -0.03983119925 | P8: 0.9123653869 | S8: 3 | T8: =M52 -> 0 | U8: =O52 -> 0.9123653869 | V8: -0.03983119925 | AB8: 200 | AC8: =Y$15*AB8+Y$16 ->  | AD8: =10^AC8 -> 
B9: 4 | C9: 155.2904994 | D9: 3025.486865 | E9: 3.480795272 | F9: 3.480795272 | G9: 1.275826859e-16 | H9: 3025.486865 | K9: =J9/4 -> 0 | O9: -0.03983119925 | P9: 0.9123653869 | S9: 4 | T9: =M53 -> 0 | U9: =O53 -> 0.9123653869 | V9: -0.03983119925
B10: 5 | C10: 179.6272292 | D10: 10778.01656 | E10: 4.032538846 | F10: 4.032538846 | G10: 0 | H10: =10^F10 -> 10778.01656 | K10: 0 | O10: -0.03983119925 | P10: 0.9123653869 | S10: 5 | T10: =M52 -> 0 | U10: =O52 -> 0.9123653869 | V10: -0.03983119925 | X10: =((ABS(W10-V10))/W10)*10 ->  | Y10: =10^W10 -> 
B11: 6 | C11: 201.194512 | D11: 33227.34597 | E11: 4.521495653 | F11: 4.521495653 | G11: 1.964346508e-16 | H11: =10^F11 -> 33227.34597 | K11: 0 | O11: -0.03983119925 | P11: 0.9123653869 | S11: 6 | T11: =M53 -> 0 | U11: =O53 -> 0.9123653869 | V11: -0.03983119925 | X11: =((ABS(W11-V11))/W11)*10 ->  | Y11: =10^W11 -> 
B12: 7 | C12: 224.0119155 | D12: 109343.8179 | E12: 5.038794234 | F12: 5.038794234 | G12: 1.762680472e-16 | H12: 109343.8179 | K12: 0 | O12: -0.03983119925 | P12: 0.9123653869 | S12: 7 | T12: =M54 -> 0 | U12: =O54 -> 0.9123653869 | V12: -0.03983119925
B13: 8 | C13: 242.2408869 | D13: 283183.1561 | E13: 5.452067418 | F13: 5.452067418 | G13: 0 | H13: 283183.1561 | K13: 0 | O13: -0.03983119925 | P13: 0.9123653869 | S13: 8 | T13: =M55 -> 0 | U13: =O55 -> 0.9123653869 | V13: -0.03983119925
E14: Ave Residual | G14: =AVERAGE(G7:G13) -> 9.223627708e-17 | K14: 0 | O14: -0.03983119925 | P14: 0.9123653869 | V14: Ave Residual | X14: =AVERAGE(X6:X13) -> 
G15: Slope: | H15: =SLOPE(E7:E13,C7:C13) -> 0.02267122899 | K15: 0 | O15: -0.03983119925 | P15: 0.9123653869 | X15: Slope: | Y15: =SLOPE(V6:V13,T6:T13) -> 
G16: Intercept: | H16: =INTERCEPT(E7:E13,C7:C13) -> -0.03983119925 | K16: 0 | O16: -0.03983119925 | P16: 0.9123653869 | X16: Intercept: | Y16: =INTERCEPT(V6:V13,T6:T13) -> 
G17: Rsq: | H17: =RSQ(E7:E13,C7:C13) -> 1 | O17: -0.03983119925 | P17: 0.9123653869 | X17: Rsq: | Y17: =RSQ(V6:V13,T6:T13) -> 
O18: -0.03983119925 | P18: 0.9123653869
J19: TABLE NO. 2
J20: 1024 MEAN CH# | M20: CONVERTED VALUES
H21: 21 | J21: to 256 REL. CH# | M21: CAN BE COPIED TO
H22: 56.5 | J22: CONVERSION | M22: THE CH# COLUMN BY | Y22: 21
J23: 1024 CH# | K23: 256 CH# | M23: SELECTING THE CELLS | Y23: 56.5
K24: =LOG10(J24*10)*(64) ->  | M24: TO BE COPIED; THEN,
M25: CLICKING [COPY],
M26: [PASTE SPECIAL], AND
M27: FINALLY [PASTE VALUE]
J34: TABLE NO. 3 | M34: TABLE NO. 5
J35: 104 MEAN CH# | M35: Determination of the
J36: to 256 REL. CH# | M36: MEPE/CH# for the
J37: CONVERSION | M37: normalization cell or particle
J38: 104 CH# | K38: 256 CH# | M38: 256 CH# | N38: 104 CH# | O38: Calc. MEPE | P38: MEPE/CH#
K39: =LOG10(J39)*(64) ->  | M39: =N7 -> 0 | N39: =10^(4*(M39/256)) -> 1 | O39: =P7 -> 0.9123653869 | P39: =O39/N39 -> 0.9123653869
M40: =N8 -> 0 | N40: =10^(4*(M40/256)) -> 1 | O40: =P8 -> 0.9123653869 | P40: =O40/N40 -> 0.9123653869
M41: =N9 -> 0 | N41: =10^(4*(M41/256)) -> 1 | O41: =P9 -> 0.9123653869 | P41: =O41/N41 -> 0.9123653869
M42: =N10 -> 0 | N42: =10^(4*(M42/256)) -> 1 | O42: =P10 -> 0.9123653869 | P42: =O42/N42 -> 0.9123653869
M43: =N11 -> 0 | N43: =10^(4*(M43/256)) -> 1 | O43: =P11 -> 0.9123653869 | P43: =O43/N43 -> 0.9123653869
M45: TABLE NO. 6
A46: Rainbow Calibration Particles (RCP-30-5A) | E46: Lot No.: | G46: File # | M46: Determination of New MEPE
A47: Acceptable: | M47: values for RCP-30-5A
A49: Action taken if not linear: | D49: By: | G49: Date: | J49: TABLE NO. 4 | M49: 256 CH# | N49: 104 CH# | O49: New MEPE
J50: 105 MEAN CH# | N50: =10^(4*(M50/256)) -> 1 | O50: =P39*N50 -> 0.9123653869
J51: to 256 REL. CH# | N51: 1 | O51: =P39*N51 -> 0.9123653869
J52: CONVERSION | N52: 1 | O52: =P39*N52 -> 0.9123653869
J53: 105 CH# | K53: 256 CH# | N53: 1 | O53: =P39*N53 -> 0.9123653869
K54: =LOG10(J54)*(256/LOG10(262144)) ->  | N54: 1 | O54: =P39*N54 -> 0.9123653869
K55: =LOG10(J55)*(256/LOG10(262144)) ->  | N55: 1 | O55: =P39*N55 -> 0.9123653869
N56: 1 | O56: =P41*N56 -> 0.9123653869
N57: 1 | O57: =P41*N57 -> 0.9123653869

Sheet MEPE (561nm Ex)
B1: TYPE THE NAME OF YOUR LAB HERE
B3: PMT LINEARITY QC RECORD | S3: Normalization Graph for Instrument B
J4: TABLE NO. 1 | M4: CROSS CALIBRATION TABLE
B5: PEAK # | C5: CH # | D5: MEPE | E5: MEPE LOG | F5: CALC. | G5: RESIDUAL | H5: CALC. MEPE | J5: 1024 REL. CH# | M5: FOR UNKNOWN SAMPLES | S5: PEAK # | T5: CH # | U5: MEPE | V5: MEPE LOG | W5: CALC. | X5: RESIDUAL | Y5: CALC. MEPE | AA5: CROSS CALIBRATION TABLE
B6: 1 | C6: 100.7994715 | F6: =H$15*C6+H$16 -> 2.29798011 | H6: =10^F6 -> 198.6003961 | J6: to 256 REL. CH# | M6: Sample | N6: CH# | O6: Calc. | P6: Calc. MEPE | S6: 1 | T6: =M50 -> 0 | U6: =O50 -> 1.116267114 | V6: =LOG10(U6) -> 0.04776813017 | W6: =Y$15*T6+Y$16 ->  | X6: =((ABS(W6-V6))/W6)*10 ->  | Y6: =10^W6 ->  | AA6: FOR NORMALIZATION GRAPH
B7: 2 | C7: 120.7159471 | D7: 552.8260676 | E7: =LOG10(D7) -> 2.742588513 | F7: =H$15*C7+H$16 -> 2.742588513 | G7: =((ABS(F7-E7))/F7) -> 1.619233829e-16 | H7: =10^F7 -> 552.8260676 | J7: CONVERSION | O7: =H$15*N7+H$16 -> 0.04776813017 | P7: =10^O7 -> 1.116267114 | S7: 2 | T7: =M51 -> 0 | U7: =O51 -> 1.116267114 | V7: 0.04776813017 | AA7: Sample | AB7: CH# | AC7: Calc. | AD7: Calc. MEPE
B8: 3 | C8: 136.5056356 | D8: 1244.720862 | E8: 3.095071969 | F8: 3.095071969 | G8: 2.869653529e-16 | H8: 1244.720862 | J8: 1024 CH# | K8: 256 CH# | O8: 0.04776813017 | P8: 1.116267114 | S8: 3 | T8: =M52 -> 0 | U8: =O52 -> 1.116267114 | V8: 0.04776813017 | AB8: 200 | AC8: =Y$15*AB8+Y$16 ->  | AD8: =10^AC8 -> 
B9: 4 | C9: 155.2904994 | D9: 3269.028203 | E9: 3.514418667 | F9: 3.514418667 | G9: 1.263620678e-16 | H9: 3269.028203 | K9: =J9/4 -> 0 | O9: 0.04776813017 | P9: 1.116267114 | S9: 4 | T9: =M53 -> 0 | U9: =O53 -> 1.116267114 | V9: 0.04776813017
B10: 5 | C10: 179.6175164 | D10: 11415.27678 | E10: 4.057486446 | F10: 4.057486446 | G10: 2.188986782e-16 | H10: =10^F10 -> 11415.27678 | K10: 0 | O10: 0.04776813017 | P10: 1.116267114 | S10: 5 | T10: =M52 -> 0 | U10: =O52 -> 1.116267114 | V10: 0.04776813017 | X10: =((ABS(W10-V10))/W10)*10 ->  | Y10: =10^W10 -> 
B11: 6 | C11: 201.194512 | D11: 34606.98096 | E11: 4.539163714 | F11: 4.539163714 | G11: 0 | H11: =10^F11 -> 34606.98096 | K11: 0 | O11: 0.04776813017 | P11: 1.116267114 | S11: 6 | T11: =M53 -> 0 | U11: =O53 -> 1.116267114 | V11: 0.04776813017 | X11: =((ABS(W11-V11))/W11)*10 ->  | Y11: =10^W11 -> 
B12: 7 | C12: 224.0119155 | D12: 111823.0702 | E12: 5.048531412 | F12: 5.048531412 | G12: 0 | H12: 111823.0702 | K12: 0 | O12: 0.04776813017 | P12: 1.116267114 | S12: 7 | T12: =M54 -> 0 | U12: =O54 -> 1.116267114 | V12: 0.04776813017
B13: 8 | C13: 242.2408869 | D13: 285409.5907 | E13: 5.455468563 | F13: 5.455468563 | G13: 0 | H13: 285409.5907 | K13: 0 | O13: 0.04776813017 | P13: 1.116267114 | S13: 8 | T13: =M55 -> 0 | U13: =O55 -> 1.116267114 | V13: 0.04776813017
E14: Ave Residual | G14: =AVERAGE(G7:G13) -> 1.13449926e-16 | K14: 0 | O14: 0.04776813017 | P14: 1.116267114 | V14: Ave Residual | X14: =AVERAGE(X6:X13) -> 
G15: Slope: | H15: =SLOPE(E7:E13,C7:C13) -> 0.02232364859 | K15: 0 | O15: 0.04776813017 | P15: 1.116267114 | X15: Slope: | Y15: =SLOPE(V6:V13,T6:T13) -> 
G16: Intercept: | H16: =INTERCEPT(E7:E13,C7:C13) -> 0.04776813017 | K16: 0 | O16: 0.04776813017 | P16: 1.116267114 | X16: Intercept: | Y16: =INTERCEPT(V6:V13,T6:T13) -> 
G17: Rsq: | H17: =RSQ(E7:E13,C7:C13) -> 1 | O17: 0.04776813017 | P17: 1.116267114 | X17: Rsq: | Y17: =RSQ(V6:V13,T6:T13) -> 
O18: 0.04776813017 | P18: 1.116267114
J19: TABLE NO. 2
J20: 1024 MEAN CH# | M20: CONVERTED VALUES
H21: 21 | J21: to 256 REL. CH# | M21: CAN BE COPIED TO
H22: 56.5 | J22: CONVERSION | M22: THE CH# COLUMN BY | Y22: 21
J23: 1024 CH# | K23: 256 CH# | M23: SELECTING THE CELLS | Y23: 56.5
K24: =LOG10(J24*10)*(64) ->  | M24: TO BE COPIED; THEN,
M25: CLICKING [COPY],
M26: [PASTE SPECIAL], AND
M27: FINALLY [PASTE VALUE]
J34: TABLE NO. 3 | M34: TABLE NO. 5
J35: 104 MEAN CH# | M35: Determination of the
J36: to 256 REL. CH# | M36: MEPE/CH# for the
J37: CONVERSION | M37: normalization cell or particle
J38: 104 CH# | K38: 256 CH# | M38: 256 CH# | N38: 104 CH# | O38: Calc. MEPE | P38: MEPE/CH#
K39: =LOG10(J39)*(64) ->  | M39: =N7 -> 0 | N39: =10^(4*(M39/256)) -> 1 | O39: =P7 -> 1.116267114 | P39: =O39/N39 -> 1.116267114
M40: =N8 -> 0 | N40: =10^(4*(M40/256)) -> 1 | O40: =P8 -> 1.116267114 | P40: =O40/N40 -> 1.116267114
M41: =N9 -> 0 | N41: =10^(4*(M41/256)) -> 1 | O41: =P9 -> 1.116267114 | P41: =O41/N41 -> 1.116267114
M42: =N10 -> 0 | N42: =10^(4*(M42/256)) -> 1 | O42: =P10 -> 1.116267114 | P42: =O42/N42 -> 1.116267114
M43: =N11 -> 0 | N43: =10^(4*(M43/256)) -> 1 | O43: =P11 -> 1.116267114 | P43: =O43/N43 -> 1.116267114
M45: TABLE NO. 6
A46: Rainbow Calibration Particles (RCP-30-5A) | E46: Lot No.: | G46: File # | M46: Determination of New MEPE
A47: Acceptable: | M47: values for RCP-30-5A
A49: Action taken if not linear: | D49: By: | G49: Date: | J49: TABLE NO. 4 | M49: 256 CH# | N49: 104 CH# | O49: New MEPE
J50: 105 MEAN CH# | N50: =10^(4*(M50/256)) -> 1 | O50: =P39*N50 -> 1.116267114
J51: to 256 REL. CH# | N51: 1 | O51: =P39*N51 -> 1.116267114
J52: CONVERSION | N52: 1 | O52: =P39*N52 -> 1.116267114
J53: 105 CH# | K53: 256 CH# | N53: 1 | O53: =P39*N53 -> 1.116267114
K54: =LOG10(J54)*(256/LOG10(262144)) ->  | N54: 1 | O54: =P39*N54 -> 1.116267114
K55: =LOG10(J55)*(256/LOG10(262144)) ->  | N55: 1 | O55: =P39*N55 -> 1.116267114
N56: 1 | O56: =P41*N56 -> 1.116267114
N57: 1 | O57: =P41*N57 -> 1.116267114

Sheet MEPTR (488nm Ex)
B1: TYPE THE NAME OF YOUR LAB HERE
B3: PMT LINEARITY QC RECORD | R3: Normalization Graph for Instrument B
J4: TABLE NO. 1 | M4: CROSS CALIBRATION TABLE
J5: 1024 REL. CH# | M5: FOR UNKNOWN SAMPLES | S5: PEAK # | T5: CH # | U5: MEPTR | V5: MEPTR LOG | W5: CALC. | X5: RESIDUAL | Y5: CALC. MEPTR | AA5: CROSS CALIBRATION TABLE
B6: PEAK # | C6: CH # | D6: MEPTR | E6: MEPTR LOG | F6: CALC. | G6: RESIDUAL | H6: CALC. MEPTR | J6: to 256 REL. CH# | M6: Sample | N6: CH# | O6: Calc. | P6: Calc. MEPTR | S6: 1 | T6: =M50 -> 0 | U6: =O50 -> 0.4272047191 | V6: =LOG10(U6) -> -0.3693639585 | W6: =Y$15*T6+Y$16 ->  | X6: =((ABS(W6-V6))/W6)*10 ->  | Y6: =10^W6 ->  | AA6: FOR NORMALIZATION GRAPH
B7: 1 | C7: 36.76391112 | F7: =H$16*C7+H$17 -> 0.4661866996 | H7: =10^F7 -> 2.925409717 | J7: CONVERSION | O7: =H$16*N7+H$17 -> -0.3693639585 | P7: =10^O7 -> 0.4272047191 | S7: 2 | T7: =M51 -> 0 | U7: =O51 -> 0.4272047191 | V7: -0.3693639585 | AA7: Sample | AB7: CH# | AC7: Calc. | AD7: Calc. MEPTR
B8: 2 | C8: 112.7927088 | D8: 156.3611508 | E8: =LOG10(D8) -> 2.194128858 | F8: =H$16*C8+H$17 -> 2.194128858 | G8: =((ABS(F8-E8))/F8) -> 6.071966214e-16 | H8: =10^F8 -> 156.3611508 | J8: 1024 CH# | K8: 256 CH# | O8: -0.3693639585 | P8: 0.4272047191 | S8: 3 | T8: =M52 -> 0 | U8: =O52 -> 0.4272047191 | V8: -0.3693639585 | AB8: 200 | AC8: =Y$15*AB8+Y$16 ->  | AD8: =10^AC8 -> 
B9: 3 | C9: 134.5341386 | D9: 487.8165541 | E9: 2.688256534 | F9: 2.688256534 | G9: 4.955879815e-16 | H9: 487.8165541 | K9: =J9/4 -> 0 | O9: -0.3693639585 | P9: 0.4272047191 | S9: 4 | T9: =M53 -> 0 | U9: =O53 -> 0.4272047191 | V9: -0.3693639585 | AB9: 125
B10: 4 | C10: 155.7826697 | D10: 1483.139053 | E10: 3.171181871 | F10: 3.171181871 | G10: 4.20117068e-16 | H10: 1483.139053 | K10: 0 | O10: -0.3693639585 | P10: 0.4272047191 | S10: 5 | T10: =M52 -> 0 | U10: =O52 -> 0.4272047191 | V10: -0.3693639585 | X10: =((ABS(W10-V10))/W10)*10 ->  | Y10: =10^W10 -> 
B11: 5 | C11: 181.0947871 | D11: 5577.791033 | E11: 3.74646224 | F11: 3.74646224 | G11: 2.370712322e-16 | H11: 5577.791033 | K11: 0 | O11: -0.3693639585 | P11: 0.4272047191 | S11: 6 | T11: =M53 -> 0 | U11: =O53 -> 0.4272047191 | V11: -0.3693639585 | X11: =((ABS(W11-V11))/W11)*10 ->  | Y11: =10^W11 -> 
B12: 6 | C12: 203.1855725 | D12: 17722.69996 | E12: 4.248529885 | F12: 4.248529885 | G12: 2.090554718e-16 | H12: 17722.69996 | K12: 0 | O12: -0.3693639585 | P12: 0.4272047191 | S12: 7 | T12: =M54 -> 0 | U12: =O54 -> 0.4272047191 | V12: -0.3693639585
B13: 7 | C13: 226.8439248 | D13: 61125.77212 | E13: 4.786224358 | F13: 4.786224358 | G13: 3.711394842e-16 | H13: 61125.77212 | K13: 0 | O13: -0.3693639585 | P13: 0.4272047191 | S13: 8 | T13: =M55 -> 0 | U13: =O55 -> 0.4272047191 | V13: -0.3693639585
B14: 8 | C14: 246.6077365 | D14: 171951.4253 | E14: 5.23540578 | F14: 5.23540578 | G14: 1.696484393e-16 | H14: 171951.4253 | K14: 0 | O14: -0.3693639585 | P14: 0.4272047191 | V14: Ave Residual | X14: =AVERAGE(X6:X13) -> 
E15: Ave Residual | G15: =AVERAGE(G8:G14) -> 3.585451855e-16 | K15: 0 | O15: -0.3693639585 | P15: 0.4272047191 | X15: Slope: | Y15: =SLOPE(V6:V13,T6:T13) -> 
G16: Slope: | H16: =SLOPE(E8:E14,C8:C14) -> 0.02272746921 | K16: 0 | O16: -0.3693639585 | P16: 0.4272047191 | X16: Intercept: | Y16: =INTERCEPT(V6:V13,T6:T13) -> 
G17: Intercept: | H17: =INTERCEPT(E8:E14,C8:C14) -> -0.3693639585 | O17: -0.3693639585 | P17: 0.4272047191 | X17: Rsq: | Y17: =RSQ(V6:V13,T6:T13) -> 
G18: Rsq: | H18: =RSQ(E8:E14,C8:C14) -> 1 | O18: -0.3693639585 | P18: 0.4272047191
J19: TABLE NO. 2
J20: 1024 MEAN CH# | M20: CONVERTED VALUES
J21: to 256 REL. CH# | M21: CAN BE COPIED TO
J22: CONVERSION | M22: THE CH# COLUMN BY
J23: 1024 CH# | K23: 256 CH# | M23: SELECTING THE CELLS
K24: =LOG10(J24*10)*(64) ->  | M24: TO BE COPIED; THEN,
M25: CLICKING [COPY],
M26: [PASTE SPECIAL], AND
M27: FINALLY [PASTE VALUE]
J34: TABLE NO. 3 | M34: TABLE NO. 5
J35: 104 MEAN CH# | M35: Determination of the
J36: to 256 REL. CH# | M36: MEPTR/CH# for the
J37: CONVERSION | M37: normalization cell or particle
J38: 104 CH# | K38: 256 CH# | M38: 256 CH# | N38: 104 CH# | O38: Calc. MEPTR | P38: MEPTR/CH#
K39: =LOG10(J39)*(64) ->  | M39: =N7 -> 0 | N39: =10^(4*(M39/256)) -> 1 | O39: =P7 -> 0.4272047191 | P39: =O39/N39 -> 0.4272047191
M40: =N8 -> 0 | N40: =10^(4*(M40/256)) -> 1 | O40: =P8 -> 0.4272047191 | P40: =O40/N40 -> 0.4272047191
M41: =N9 -> 0 | N41: =10^(4*(M41/256)) -> 1 | O41: =P9 -> 0.4272047191 | P41: =O41/N41 -> 0.4272047191
M42: =N10 -> 0 | N42: =10^(4*(M42/256)) -> 1 | O42: =P10 -> 0.4272047191 | P42: =O42/N42 -> 0.4272047191
M43: =N11 -> 0 | N43: =10^(4*(M43/256)) -> 1 | O43: =P11 -> 0.4272047191 | P43: =O43/N43 -> 0.4272047191
M45: TABLE NO. 6
M46: Determination of New MEPTR
A47: Rainbow Calibration Particles (RCP-30-5A) | E47: Lot No.: | G47: File # | M47: values for RCP-30-5A
A48: Acceptable:
J49: TABLE NO. 4 | M49: 256 CH# | N49: 104 CH# | O49: New MEPTR
A50: Action taken if not linear: | D50: By: | G50: Date: | J50: 105 MEAN CH# | N50: =10^(4*(M50/256)) -> 1 | O50: =P39*N50 -> 0.4272047191
J51: to 256 REL. CH# | N51: 1 | O51: =P39*N51 -> 0.4272047191
J52: CONVERSION | N52: 1 | O52: =P39*N52 -> 0.4272047191
J53: 105 CH# | K53: 256 CH# | N53: 1 | O53: =P39*N53 -> 0.4272047191
K54: =LOG10(J54)*(256/LOG10(262144)) ->  | N54: 1 | O54: =P39*N54 -> 0.4272047191
K55: =LOG10(J55)*(256/LOG10(262144)) ->  | N55: 1 | O55: =P39*N55 -> 0.4272047191
N56: 1 | O56: =P41*N56 -> 0.4272047191
N57: 1 | O57: =P41*N57 -> 0.4272047191

Sheet MEPTR (561nm Ex)
B1: TYPE THE NAME OF YOUR LAB HERE
B3: PMT LINEARITY QC RECORD | R3: Normalization Graph for Instrument B
J4: TABLE NO. 1 | M4: CROSS CALIBRATION TABLE
J5: 1024 REL. CH# | M5: FOR UNKNOWN SAMPLES | S5: PEAK # | T5: CH # | U5: MEPTR | V5: MEPTR LOG | W5: CALC. | X5: RESIDUAL | Y5: CALC. MEPTR | AA5: CROSS CALIBRATION TABLE
B6: PEAK # | C6: CH # | D6: MEPTR | E6: MEPTR LOG | F6: CALC. | G6: RESIDUAL | H6: CALC. MEPTR | J6: to 256 REL. CH# | M6: Sample | N6: CH# | O6: Calc. | P6: Calc. MEPTR | S6: 1 | T6: =M50 -> 0 | U6: =O50 -> 0.543071093 | V6: =LOG10(U6) -> -0.2651433135 | W6: =Y$15*T6+Y$16 ->  | X6: =((ABS(W6-V6))/W6)*10 ->  | Y6: =10^W6 ->  | AA6: FOR NORMALIZATION GRAPH
B7: 1 | C7: 36.76391112 | F7: =H$16*C7+H$17 -> 0.5568066378 | H7: =10^F7 -> 3.604181373 | J7: CONVERSION | O7: =H$16*N7+H$17 -> -0.2651433135 | P7: =10^O7 -> 0.543071093 | S7: 2 | T7: =M51 -> 0 | U7: =O51 -> 0.543071093 | V7: -0.2651433135 | AA7: Sample | AB7: CH# | AC7: Calc. | AD7: Calc. MEPTR
B8: 2 | C8: 112.7927088 | D8: 180.5602526 | E8: =LOG10(D8) -> 2.256622154 | F8: =H$16*C8+H$17 -> 2.256622154 | G8: =((ABS(F8-E8))/F8) -> 5.903813482e-16 | H8: =10^F8 -> 180.5602526 | J8: 1024 CH# | K8: 256 CH# | O8: -0.2651433135 | P8: 0.543071093 | S8: 3 | T8: =M52 -> 0 | U8: =O52 -> 0.543071093 | V8: -0.2651433135 | AB8: 200 | AC8: =Y$15*AB8+Y$16 ->  | AD8: =10^AC8 -> 
B9: 3 | C9: 134.5341386 | D9: 552.9764652 | E9: 2.742706648 | F9: 2.742706648 | G9: 3.238328169e-16 | H9: 552.9764652 | K9: =J9/4 -> 0 | O9: -0.2651433135 | P9: 0.543071093 | S9: 4 | T9: =M53 -> 0 | U9: =O53 -> 0.543071093 | V9: -0.2651433135 | AB9: 125
B10: 4 | C10: 155.7826697 | D10: 1651.09153 | E10: 3.21777115 | F10: 3.21777115 | G10: 2.760228675e-16 | H10: 1651.09153 | K10: 0 | O10: -0.2651433135 | P10: 0.543071093 | S10: 5 | T10: =M52 -> 0 | U10: =O52 -> 0.543071093 | V10: -0.2651433135 | X10: =((ABS(W10-V10))/W10)*10 ->  | Y10: =10^W10 -> 
B11: 5 | C11: 181.0947871 | D11: 6076.973901 | E11: 3.783687371 | F11: 3.783687371 | G11: 2.347388493e-16 | H11: 6076.973901 | K11: 0 | O11: -0.2651433135 | P11: 0.543071093 | S11: 6 | T11: =M53 -> 0 | U11: =O53 -> 0.543071093 | V11: -0.2651433135 | X11: =((ABS(W11-V11))/W11)*10 ->  | Y11: =10^W11 -> 
B12: 6 | C12: 203.1855725 | D12: 18948.83839 | E12: 4.277582592 | F12: 4.277582592 | G12: 0 | H12: 18948.83839 | K12: 0 | O12: -0.2651433135 | P12: 0.543071093 | S12: 7 | T12: =M54 -> 0 | U12: =O54 -> 0.543071093 | V12: -0.2651433135
B13: 7 | C13: 226.8439248 | D13: 64050.82426 | E13: 4.806524723 | F13: 4.806524723 | G13: 1.84785988e-16 | H13: 64050.82426 | K13: 0 | O13: -0.2651433135 | P13: 0.543071093 | S13: 8 | T13: =M55 -> 0 | U13: =O55 -> 0.543071093 | V13: -0.2651433135
B14: 8 | C14: 246.6077365 | D14: 177171.792 | E14: 5.248394578 | F14: 5.248394578 | G14: 3.384571821e-16 | H14: 177171.792 | K14: 0 | O14: -0.2651433135 | P14: 0.543071093 | V14: Ave Residual | X14: =AVERAGE(X6:X13) -> 
E15: Ave Residual | G15: =AVERAGE(G8:G14) -> 2.783170074e-16 | K15: 0 | O15: -0.2651433135 | P15: 0.543071093 | X15: Slope: | Y15: =SLOPE(V6:V13,T6:T13) -> 
G16: Slope: | H16: =SLOPE(E8:E14,C8:C14) -> 0.02235752199 | K16: 0 | O16: -0.2651433135 | P16: 0.543071093 | X16: Intercept: | Y16: =INTERCEPT(V6:V13,T6:T13) -> 
G17: Intercept: | H17: =INTERCEPT(E8:E14,C8:C14) -> -0.2651433135 | O17: -0.2651433135 | P17: 0.543071093 | X17: Rsq: | Y17: =RSQ(V6:V13,T6:T13) -> 
G18: Rsq: | H18: =RSQ(E8:E14,C8:C14) -> 1 | O18: -0.2651433135 | P18: 0.543071093
J19: TABLE NO. 2
J20: 1024 MEAN CH# | M20: CONVERTED VALUES
J21: to 256 REL. CH# | M21: CAN BE COPIED TO
J22: CONVERSION | M22: THE CH# COLUMN BY
J23: 1024 CH# | K23: 256 CH# | M23: SELECTING THE CELLS
K24: =LOG10(J24*10)*(64) ->  | M24: TO BE COPIED; THEN,
M25: CLICKING [COPY],
M26: [PASTE SPECIAL], AND
M27: FINALLY [PASTE VALUE]
J34: TABLE NO. 3 | M34: TABLE NO. 5
J35: 104 MEAN CH# | M35: Determination of the
J36: to 256 REL. CH# | M36: MEPTR/CH# for the
J37: CONVERSION | M37: normalization cell or particle
J38: 104 CH# | K38: 256 CH# | M38: 256 CH# | N38: 104 CH# | O38: Calc. MEPTR | P38: MEPTR/CH#
K39: =LOG10(J39)*(64) ->  | M39: =N7 -> 0 | N39: =10^(4*(M39/256)) -> 1 | O39: =P7 -> 0.543071093 | P39: =O39/N39 -> 0.543071093
M40: =N8 -> 0 | N40: =10^(4*(M40/256)) -> 1 | O40: =P8 -> 0.543071093 | P40: =O40/N40 -> 0.543071093
M41: =N9 -> 0 | N41: =10^(4*(M41/256)) -> 1 | O41: =P9 -> 0.543071093 | P41: =O41/N41 -> 0.543071093
M42: =N10 -> 0 | N42: =10^(4*(M42/256)) -> 1 | O42: =P10 -> 0.543071093 | P42: =O42/N42 -> 0.543071093
M43: =N11 -> 0 | N43: =10^(4*(M43/256)) -> 1 | O43: =P11 -> 0.543071093 | P43: =O43/N43 -> 0.543071093
M45: TABLE NO. 6
M46: Determination of New MEPTR
A47: Rainbow Calibration Particles (RCP-30-5A) | E47: Lot No.: | G47: File # | M47: values for RCP-30-5A
A48: Acceptable:
J49: TABLE NO. 4 | M49: 256 CH# | N49: 104 CH# | O49: New MEPTR
A50: Action taken if not linear: | D50: By: | G50: Date: | J50: 105 MEAN CH# | N50: =10^(4*(M50/256)) -> 1 | O50: =P39*N50 -> 0.543071093
J51: to 256 REL. CH# | N51: 1 | O51: =P39*N51 -> 0.543071093
J52: CONVERSION | N52: 1 | O52: =P39*N52 -> 0.543071093
J53: 105 CH# | K53: 256 CH# | N53: 1 | O53: =P39*N53 -> 0.543071093
K54: =LOG10(J54)*(256/LOG10(262144)) ->  | N54: 1 | O54: =P39*N54 -> 0.543071093
K55: =LOG10(J55)*(256/LOG10(262144)) ->  | N55: 1 | O55: =P39*N55 -> 0.543071093
N56: 1 | O56: =P41*N56 -> 0.543071093
N57: 1 | O57: =P41*N57 -> 0.543071093

Sheet MECY (488nm Ex)
B1: TYPE THE NAME OF YOUR LAB HERE
B3: PMT LINEARITY QC RECORD | R3: Normalization Graph for Instrument B
J4: TABLE NO. 1 | M4: CROSS CALIBRATION TABLE
B5: PEAK # | C5: CH # | D5: MECY | E5: MECY LOG | F5: CALC. | G5: RESIDUAL | H5: CALC. MECY | J5: 1024 REL. CH# | M5: FOR UNKNOWN SAMPLES | S5: PEAK # | T5: CH # | U5: MECY | V5: MECY LOG | W5: CALC. | X5: RESIDUAL | Y5: CALC. MECY | AA5: CROSS CALIBRATION TABLE
B6: 1 | C6: 22.5416889 | F6: =H$15*C6+H$16 -> 1.379027316 | H6: =10^F6 -> 23.93466295 | J6: to 256 REL. CH# | M6: Sample | N6: CH# | O6: Calc. | P6: Calc. MECY | S6: 1 | T6: =M50 -> 0 | U6: =O50 -> 7.908800398 | V6: =LOG10(U6) -> 0.898110615 | W6: =Y$15*T6+Y$16 ->  | X6: =((ABS(W6-V6))/W6)*10 ->  | Y6: =10^W6 ->  | AA6: FOR NORMALIZATION GRAPH
B7: 2 | C7: 103.8759929 | D7: 1300.941519 | E7: =LOG10(D7) -> 3.114257774 | F7: =H$15*C7+H$16 -> 3.114257774 | G7: =((ABS(F7-E7))/F7) -> 1.42598732e-16 | H7: =10^F7 -> 1300.941519 | J7: CONVERSION | O7: =H$15*N7+H$16 -> 0.898110615 | P7: =10^O7 -> 7.908800398 | S7: 2 | T7: =M51 -> 0 | U7: =O51 -> 7.908800398 | V7: 0.898110615 | AA7: Sample | AB7: CH# | AC7: Calc. | AD7: Calc. MECY
B8: 3 | C8: 124.8437636 | D8: 3644.144975 | E8: 3.561595646 | F8: 3.561595646 | G8: 1.246882729e-16 | H8: 3644.144975 | J8: 1024 CH# | K8: 256 CH# | O8: 0.898110615 | P8: 7.908800398 | S8: 3 | T8: =M52 -> 0 | U8: =O52 -> 7.908800398 | V8: 0.898110615 | AB8: 200 | AC8: =Y$15*AB8+Y$16 ->  | AD8: =10^AC8 -> 
B9: 4 | C9: 146.1823923 | D9: 10395.50528 | E9: 4.016845603 | F9: 4.016845603 | G9: 2.211134077e-16 | H9: 10395.50528 | K9: =J9/4 -> 0 | O9: 0.898110615 | P9: 7.908800398 | S9: 4 | T9: =M53 -> 0 | U9: =O53 -> 7.908800398 | V9: 0.898110615
B10: 5 | C10: 171.687787 | D10: 36390.80162 | E10: 4.560991622 | F10: 4.560991622 | G10: 0 | H10: 36390.80162 | K10: 0 | O10: 0.898110615 | P10: 7.908800398 | S10: 5 | T10: =M52 -> 0 | U10: =O52 -> 7.908800398 | V10: 0.898110615 | X10: =((ABS(W10-V10))/W10)*10 ->  | Y10: =10^W10 -> 
B11: 6 | C11: 194.4034951 | D11: 111076.1825 | E11: 5.045620945 | F11: 5.045620945 | G11: 1.76029557e-16 | H11: 111076.1825 | K11: 0 | O11: 0.898110615 | P11: 7.908800398 | S11: 6 | T11: =M53 -> 0 | U11: =O53 -> 7.908800398 | V11: 0.898110615 | X11: =((ABS(W11-V11))/W11)*10 ->  | Y11: =10^W11 -> 
B12: 7 | C12: 218.5583022 | D12: 363875.4788 | E12: 5.56095279 | F12: 5.56095279 | G12: 1.597169502e-16 | H12: 363875.4788 | K12: 0 | O12: 0.898110615 | P12: 7.908800398 | S12: 7 | T12: =M56 -> 0 | U12: =O56 -> 7.908800398 | V12: 0.898110615
B13: 8 | C13: 237.164071 | D13: 907608.223 | E13: 5.957898422 | F13: 5.957898422 | G13: 1.49075791e-16 | H13: 907608.223 | K13: 0 | O13: 0.898110615 | P13: 7.908800398 | S13: 8 | T13: =M57 -> 0 | U13: =O57 -> 7.908800398 | V13: 0.898110615
E14: Ave Residual | G14: =AVERAGE(G7:G13) -> 1.390318158e-16 | K14: 0 | O14: 0.898110615 | P14: 7.908800398 | V14: Ave Residual | X14: =AVERAGE(X6:X13) -> 
G15: Slope: | H15: =SLOPE(E7:E13,C7:C13) -> 0.02133454611 | K15: 0 | O15: 0.898110615 | P15: 7.908800398 | X15: Slope: | Y15: =SLOPE(V6:V13,T6:T13) -> 
G16: Intercept: | H16: =INTERCEPT(E7:E13,C7:C13) -> 0.898110615 | K16: 0 | O16: 0.898110615 | P16: 7.908800398 | X16: Intercept: | Y16: =INTERCEPT(V6:V13,T6:T13) -> 
G17: Rsq: | H17: =RSQ(E7:E13,C7:C13) -> 1 | O17: 0.898110615 | P17: 7.908800398 | X17: Rsq: | Y17: =RSQ(V6:V13,T6:T13) -> 
O18: 0.898110615 | P18: 7.908800398
J19: TABLE NO. 2
J20: 1024 MEAN CH# | M20: CONVERTED VALUES
J21: to 256 REL. CH# | M21: CAN BE COPIED TO
J22: CONVERSION | M22: THE CH# COLUMN BY
J23: 1024 CH# | K23: 256 CH# | M23: SELECTING THE CELLS
K24: =LOG10(J24*10)*(64) ->  | M24: TO BE COPIED; THEN,
M25: CLICKING [COPY],
M26: [PASTE SPECIAL], AND
M27: FINALLY [PASTE VALUE]
J34: TABLE NO. 3 | M34: TABLE NO. 5
J35: 104 MEAN CH# | M35: Determination of the
J36: to 256 REL. CH# | M36: MECY/CH# for the
J37: CONVERSION | M37: normalization cell or particle
J38: 104 CH# | K38: 256 CH# | M38: 256 CH# | N38: 104 CH# | O38: Calc. MECY | P38: MECY/CH#
K39: =LOG10(J39)*(64) ->  | M39: =N7 -> 0 | N39: =10^(4*(M39/256)) -> 1 | O39: =P7 -> 7.908800398 | P39: =O39/N39 -> 7.908800398
M40: =N8 -> 0 | N40: =10^(4*(M40/256)) -> 1 | O40: =P8 -> 7.908800398 | P40: =O40/N40 -> 7.908800398
M41: =N9 -> 0 | N41: =10^(4*(M41/256)) -> 1 | O41: =P9 -> 7.908800398 | P41: =O41/N41 -> 7.908800398
M42: =N10 -> 0 | N42: =10^(4*(M42/256)) -> 1 | O42: =P10 -> 7.908800398 | P42: =O42/N42 -> 7.908800398
M43: =N11 -> 0 | N43: =10^(4*(M43/256)) -> 1 | O43: =P11 -> 7.908800398 | P43: =O43/N43 -> 7.908800398
M45: TABLE NO. 6
A46: Rainbow Calibration Particles (RCP-30-5A) | E46: Lot No.: | G46: File # | M46: Determination of New MECY
A47: Acceptable: | M47: values for RCP-30-5A
A49: Action taken if not linear: | D49: By: | G49: Date: | J49: TABLE NO. 4 | M49: 256 CH# | N49: 104 CH# | O49: New MECY
J50: 105 MEAN CH# | N50: =10^(4*(M50/256)) -> 1 | O50: =P39*N50 -> 7.908800398
J51: to 256 REL. CH# | N51: 1 | O51: =P39*N51 -> 7.908800398
J52: CONVERSION | N52: 1 | O52: =P39*N52 -> 7.908800398
J53: 105 CH# | K53: 256 CH# | N53: 1 | O53: =P39*N53 -> 7.908800398
J54: 1 | K54: =LOG10(J54)*(256/LOG10(262144)) -> 0 | N54: 1 | O54: =P40*N54 -> 7.908800398
J55: 119 | K55: =LOG10(J55)*(256/LOG10(262144)) -> 98.05963041 | N55: 1 | O55: =P41*N55 -> 7.908800398
J56: 356 | K56: 120.5437644 | N56: 1 | O56: =P39*N56 -> 7.908800398
J57: 1196 | K57: 145.4080238 | N57: 1 | O57: =P39*N57 -> 7.908800398
J58: 3765 | K58: 168.9377301
J59: 11452 | K59: 191.7626589
J60: 39824 | K60: 217.3347629
J61: 100094 | K61: 236.245276

Sheet MECY (561nm Ex)
B1: TYPE THE NAME OF YOUR LAB HERE
B3: PMT LINEARITY QC RECORD | R3: Normalization Graph for Instrument B
J4: TABLE NO. 1 | M4: CROSS CALIBRATION TABLE
B5: PEAK # | C5: CH # | D5: MECY | E5: MECY LOG | F5: CALC. | G5: RESIDUAL | H5: CALC. MECY | J5: 1024 REL. CH# | M5: FOR UNKNOWN SAMPLES | S5: PEAK # | T5: CH # | U5: MECY | V5: MECY LOG | W5: CALC. | X5: RESIDUAL | Y5: CALC. MECY | AA5: CROSS CALIBRATION TABLE
B6: 1 | C6: 22.5416889 | F6: =H$15*C6+H$16 -> 1.336740099 | H6: =10^F6 -> 21.7140133 | J6: to 256 REL. CH# | M6: Sample | N6: CH# | O6: Calc. | P6: Calc. MECY | S6: 1 | T6: =M50 -> 0 | U6: =O50 -> 7.108889855 | V6: =LOG10(U6) -> 0.8518017853 | W6: =Y$15*T6+Y$16 ->  | X6: =((ABS(W6-V6))/W6)*10 ->  | Y6: =10^W6 ->  | AA6: FOR NORMALIZATION GRAPH
B7: 2 | C7: 103.8759929 | D7: 1220.34108 | E7: =LOG10(D7) -> 3.086481231 | F7: =H$15*C7+H$16 -> 3.086481231 | G7: =((ABS(F7-E7))/F7) -> 1.43882038e-16 | H7: =10^F7 -> 1220.34108 | J7: CONVERSION | O7: =H$15*N7+H$16 -> 0.8518017853 | P7: =10^O7 -> 7.108889855 | S7: 2 | T7: =M51 -> 0 | U7: =O51 -> 7.108889855 | V7: 0.8518017853 | AA7: Sample | AB7: CH# | AC7: Calc. | AD7: Calc. MECY
B8: 3 | C8: 124.8437636 | D8: 3447.941724 | E8: 3.537559917 | F8: 3.537559917 | G8: 1.255354595e-16 | H8: 3447.941724 | J8: 1024 CH# | K8: 256 CH# | O8: 0.8518017853 | P8: 7.108889855 | S8: 3 | T8: =M52 -> 0 | U8: =O52 -> 7.108889855 | V8: 0.8518017853 | AB8: 200 | AC8: =Y$15*AB8+Y$16 ->  | AD8: =10^AC8 -> 
B9: 4 | C9: 146.1823923 | D9: 9922.402769 | E9: 3.996616852 | F9: 3.996616852 | G9: 0 | H9: 9922.402769 | K9: =J9/4 -> 0 | O9: 0.8518017853 | P9: 7.108889855 | S9: 4 | T9: =M53 -> 0 | U9: =O53 -> 7.108889855 | V9: 0.8518017853
B10: 5 | C10: 171.687787 | D10: 35100.49427 | E10: 4.545313232 | F10: 4.545313232 | G10: 1.954053273e-16 | H10: 35100.49427 | K10: 0 | O10: 0.8518017853 | P10: 7.108889855 | S10: 5 | T10: =M52 -> 0 | U10: =O52 -> 7.108889855 | V10: 0.8518017853 | X10: =((ABS(W10-V10))/W10)*10 ->  | Y10: =10^W10 -> 
B11: 6 | C11: 194.4034951 | D11: 108142.2035 | E11: 5.033995214 | F11: 5.033995214 | G11: 3.528721748e-16 | H11: 108142.2035 | K11: 0 | O11: 0.8518017853 | P11: 7.108889855 | S11: 6 | T11: =M53 -> 0 | U11: =O53 -> 7.108889855 | V11: 0.8518017853 | X11: =((ABS(W11-V11))/W11)*10 ->  | Y11: =10^W11 -> 
B12: 7 | C12: 218.5583022 | D12: 357796.8104 | E12: 5.553636465 | F12: 5.553636465 | G12: 4.797820808e-16 | H12: 357796.8104 | K12: 0 | O12: 0.8518017853 | P12: 7.108889855 | S12: 7 | T12: =M56 -> 0 | U12: =O56 -> 7.108889855 | V12: 0.8518017853
B13: 8 | C13: 237.164071 | D13: 899293.6171 | E13: 5.953901511 | F13: 5.953901511 | G13: 0 | H13: 899293.6171 | K13: 0 | O13: 0.8518017853 | P13: 7.108889855 | S13: 8 | T13: =M57 -> 0 | U13: =O57 -> 7.108889855 | V13: 0.8518017853
E14: Ave Residual | G14: =AVERAGE(G7:G13) -> 1.853538686e-16 | K14: 0 | O14: 0.8518017853 | P14: 7.108889855 | V14: Ave Residual | X14: =AVERAGE(X6:X13) -> 
G15: Slope: | H15: =SLOPE(E7:E13,C7:C13) -> 0.0215129539 | K15: 0 | O15: 0.8518017853 | P15: 7.108889855 | X15: Slope: | Y15: =SLOPE(V6:V13,T6:T13) -> 
G16: Intercept: | H16: =INTERCEPT(E7:E13,C7:C13) -> 0.8518017853 | K16: 0 | O16: 0.8518017853 | P16: 7.108889855 | X16: Intercept: | Y16: =INTERCEPT(V6:V13,T6:T13) -> 
G17: Rsq: | H17: =RSQ(E7:E13,C7:C13) -> 1 | O17: 0.8518017853 | P17: 7.108889855 | X17: Rsq: | Y17: =RSQ(V6:V13,T6:T13) -> 
O18: 0.8518017853 | P18: 7.108889855
J19: TABLE NO. 2
J20: 1024 MEAN CH# | M20: CONVERTED VALUES
J21: to 256 REL. CH# | M21: CAN BE COPIED TO
J22: CONVERSION | M22: THE CH# COLUMN BY
J23: 1024 CH# | K23: 256 CH# | M23: SELECTING THE CELLS
K24: =LOG10(J24*10)*(64) ->  | M24: TO BE COPIED; THEN,
M25: CLICKING [COPY],
M26: [PASTE SPECIAL], AND
M27: FINALLY [PASTE VALUE]
J34: TABLE NO. 3 | M34: TABLE NO. 5
J35: 104 MEAN CH# | M35: Determination of the
J36: to 256 REL. CH# | M36: MECY/CH# for the
J37: CONVERSION | M37: normalization cell or particle
J38: 104 CH# | K38: 256 CH# | M38: 256 CH# | N38: 104 CH# | O38: Calc. MECY | P38: MECY/CH#
K39: =LOG10(J39)*(64) ->  | M39: =N7 -> 0 | N39: =10^(4*(M39/256)) -> 1 | O39: =P7 -> 7.108889855 | P39: =O39/N39 -> 7.108889855
M40: =N8 -> 0 | N40: =10^(4*(M40/256)) -> 1 | O40: =P8 -> 7.108889855 | P40: =O40/N40 -> 7.108889855
M41: =N9 -> 0 | N41: =10^(4*(M41/256)) -> 1 | O41: =P9 -> 7.108889855 | P41: =O41/N41 -> 7.108889855
M42: =N10 -> 0 | N42: =10^(4*(M42/256)) -> 1 | O42: =P10 -> 7.108889855 | P42: =O42/N42 -> 7.108889855
M43: =N11 -> 0 | N43: =10^(4*(M43/256)) -> 1 | O43: =P11 -> 7.108889855 | P43: =O43/N43 -> 7.108889855
M45: TABLE NO. 6
A46: Rainbow Calibration Particles (RCP-30-5A) | E46: Lot No.: | G46: File # | M46: Determination of New MECY
A47: Acceptable: | M47: values for RCP-30-5A
A49: Action taken if not linear: | D49: By: | G49: Date: | J49: TABLE NO. 4 | M49: 256 CH# | N49: 104 CH# | O49: New MECY
J50: 105 MEAN CH# | N50: =10^(4*(M50/256)) -> 1 | O50: =P39*N50 -> 7.108889855
J51: to 256 REL. CH# | N51: 1 | O51: =P39*N51 -> 7.108889855
J52: CONVERSION | N52: 1 | O52: =P39*N52 -> 7.108889855
J53: 105 CH# | K53: 256 CH# | N53: 1 | O53: =P39*N53 -> 7.108889855
J54: 1 | K54: =LOG10(J54)*(256/LOG10(262144)) -> 0 | N54: 1 | O54: =P40*N54 -> 7.108889855
J55: 119 | K55: =LOG10(J55)*(256/LOG10(262144)) -> 98.05963041 | N55: 1 | O55: =P41*N55 -> 7.108889855
J56: 356 | K56: 120.5437644 | N56: 1 | O56: =P39*N56 -> 7.108889855
J57: 1196 | K57: 145.4080238 | N57: 1 | O57: =P39*N57 -> 7.108889855
J58: 3765 | K58: 168.9377301
J59: 11452 | K59: 191.7626589
J60: 39824 | K60: 217.3347629
J61: 100094 | K61: 236.245276

Sheet MEPCY7
B1: TYPE THE NAME OF YOUR LAB HERE
B3: PMT LINEARITY QC RECORD | R3: Normalization Graph for Instrument B
J4: TABLE NO. 1 | M4: CROSS CALIBRATION TABLE
B5: PEAK # | C5: CH # | D5: MEPCY7 | E5: MEPCY7 LOG | F5: CALC. | G5: RESIDUAL | H5: CALC. MEPCY7 | J5: 1024 REL. CH# | M5: FOR UNKNOWN SAMPLES | S5: PEAK # | T5: CH # | U5: MEPCY7 | V5: MEPCY7 LOG | W5: CALC. | X5: RESIDUAL | Y5: CALC. MEPCY7 | AA5: CROSS CALIBRATION TABLE
B6: 1 | C6: 49.20080524 | F6: =H$15*C6+H$16 -> 0.03681628765 | H6: =10^F6 -> 1.088469559 | J6: to 256 REL. CH# | M6: Sample | N6: CH# | O6: Calc. | P6: Calc. MEPCY7 | S6: 1 | T6: =M50 -> 0 | U6: =O50 -> 0.03829325374 | V6: =LOG10(U6) -> -1.41687773 | W6: =Y$15*T6+Y$16 ->  | X6: =((ABS(W6-V6))/W6)*10 ->  | Y6: =10^W6 ->  | AA6: FOR NORMALIZATION GRAPH
B7: 2 | C7: 106.4364911 | D7: 53 | E7: =LOG10(D7) -> 1.72427587 | F7: 1.727910035 | G7: =((ABS(F7-E7))/F7) -> 0.002103214193 | H7: 53.44536342 | J7: CONVERSION | O7: =H$15*N7+H$16 -> -1.41687773 | P7: =10^O7 -> 0.03829325374 | S7: 2 | T7: 0 | U7: 0.03829325374 | V7: -1.41687773 | AA7: Sample | AB7: CH# | AC7: Calc. | AD7: Calc. MEPCY7
B8: 3 | C8: 124.703066 | D8: 186 | E8: 2.269512944 | F8: 2.267616865 | G8: 0.0008361549691 | H8: 185.1897158 | J8: 1024 CH# | K8: 256 CH# | O8: -1.41687773 | P8: 0.03829325374 | S8: 3 | T8: 0 | U8: 0.03829325374 | V8: -1.41687773 | AB8: 200 | AC8: =Y$15*AB8+Y$16 ->  | AD8: =10^AC8 -> 
B9: 4 | C9: 145.8660791 | D9: 785 | E9: 2.894869657 | F9: 2.892902275 | G9: 0.0006800720956 | H9: 781.4519417 | K9: =J9/4 -> 0 | O9: -1.41687773 | P9: 0.03829325374 | S9: 4 | T9: 0 | U9: 0.03829325374 | V9: -1.41687773
B10: 5 | C10: 171.2834718 | D10: 4416.273225 | E10: 3.645055934 | F10: 3.64388819 | G10: 0.0003204666653 | H10: 4404.414561 | K10: 0 | O10: -1.41687773 | P10: 0.03829325374 | S10: 5 | T10: 0 | U10: 0.03829325374 | V10: -1.41687773
B11: 6 | C11: 194.322997 | D11: 21133.01422 | E11: 4.324961445 | F11: 4.324617289 | G11: 7.95807551e-05 | H11: 21116.27402 | K11: 0 | O11: -1.41687773 | P11: 0.03829325374 | S11: 6 | T11: 0 | U11: 0.03829325374 | V11: -1.41687773
B12: 7 | C12: 219.1581394 | D12: 114250.0333 | E12: 5.057856335 | F12: 5.058399955 | G12: 0.000107468683 | H12: 114393.133 | K12: 0 | O12: -1.41687773 | P12: 0.03829325374 | S12: 7 | T12: 0 | U12: 0.03829325374 | V12: -1.41687773
B13: 8 | C13: 237.4523329 | D13: 396027.3975 | E13: 5.597725232 | F13: 5.59892281 | G13: 0.0002138943111 | H13: 397120.9599 | K13: 0 | O13: -1.41687773 | P13: 0.03829325374 | S13: 8 | T13: 0 | U13: 0.03829325374 | V13: -1.41687773
E14: Ave Residual | G14: =AVERAGE(G7:G13) -> 0.0006201216675 | K14: 0 | O14: -1.41687773 | P14: 0.03829325374 | V14: Ave Residual | X14: =AVERAGE(X6:X13) -> 
G15: Slope: | H15: =SLOPE(E7:E13,C7:C13) -> 0.02954614281 | K15: 0 | O15: -1.41687773 | P15: 0.03829325374 | X15: Slope: | Y15: =SLOPE(V6:V13,T6:T13) -> 
G16: Intercept: | H16: =INTERCEPT(E7:E13,C7:C13) -> -1.41687773 | K16: 0 | O16: -1.41687773 | P16: 0.03829325374 | X16: Intercept: | Y16: =INTERCEPT(V6:V13,T6:T13) -> 
G17: Rsq: | H17: =RSQ(E7:E13,C7:C13) -> 0.9999980762 | O17: -1.41687773 | P17: 0.03829325374 | X17: Rsq: | Y17: =RSQ(V6:V13,T6:T13) -> 
O18: -1.41687773 | P18: 0.03829325374
J19: TABLE NO. 2
J20: 1024 MEAN CH# | M20: CONVERTED VALUES
J21: to 256 REL. CH# | M21: CAN BE COPIED TO
J22: CONVERSION | M22: THE CH# COLUMN BY
J23: 1024 CH# | K23: 256 CH# | M23: SELECTING THE CELLS
K24: =LOG10(J24*10)*(64) ->  | M24: TO BE COPIED; THEN,
M25: CLICKING [COPY],
M26: [PASTE SPECIAL], AND
M27: FINALLY [PASTE VALUE]
J34: TABLE NO. 3 | M34: TABLE NO. 5
J35: 104 MEAN CH# | M35: Determination of the
J36: to 256 REL. CH# | M36: MEPCY7/CH# for the
J37: CONVERSION | M37: normalization cell or particle
J38: 104 CH# | K38: 256 CH# | M38: 256 CH# | N38: 104 CH# | O38: Calc. MEPCY7 | P38: MEPCY7/CH#
K39: =LOG10(J39)*(64) ->  | M39: =N7 -> 0 | N39: =10^(4*(M39/256)) -> 1 | O39: =P7 -> 0.03829325374 | P39: =O39/N39 -> 0.03829325374
M40: =N8 -> 0 | N40: =10^(4*(M40/256)) -> 1 | O40: =P8 -> 0.03829325374 | P40: =O40/N40 -> 0.03829325374
M41: =N9 -> 0 | N41: =10^(4*(M41/256)) -> 1 | O41: =P9 -> 0.03829325374 | P41: =O41/N41 -> 0.03829325374
M42: =N10 -> 0 | N42: =10^(4*(M42/256)) -> 1 | O42: =P10 -> 0.03829325374 | P42: =O42/N42 -> 0.03829325374
M43: =N11 -> 0 | N43: =10^(4*(M43/256)) -> 1 | O43: =P11 -> 0.03829325374 | P43: =O43/N43 -> 0.03829325374
M45: TABLE NO. 6
A46: Rainbow Calibration Particles (RCP-30-5A) | E46: Lot No.: | G46: File # | M46: Determination of New MEPCY7
A47: Acceptable: | M47: values for RCP-30-5A
A49: Action taken if not linear: | D49: By: | G49: Date: | J49: TABLE NO. 4 | M49: 256 CH# | N49: 104 CH# | O49: New MEPCY7
J50: 105 MEAN CH# | N50: =10^(4*(M50/256)) -> 1 | O50: =P39*N50 -> 0.03829325374
J51: to 256 REL. CH# | N51: 1 | O51: =P39*N51 -> 0.03829325374
J52: CONVERSION | N52: 1 | O52: =P39*N52 -> 0.03829325374
J53: 105 CH# | K53: 256 CH# | N53: 1 | O53: =P39*N53 -> 0.03829325374
J54: 8 | K54: =LOG10(J54)*(256/LOG10(262144)) -> 42.66666667 | N54: 1 | O54: =P39*N54 -> 0.03829325374
J55: 146 | K55: 102.2552826 | N55: 1 | O55: =P39*N55 -> 0.03829325374
J56: 377 | K56: 121.7197613 | N56: 1 | O56: =P39*N56 -> 0.03829325374
J57: 1340 | K57: 147.7406903 | N57: 1 | O57: =P39*N57 -> 0.03829325374
J58: 4198 | K58: 171.1713629
J59: 13333 | K59: 194.8830409
J60: 50516 | K60: 222.2144396
J61: 148865 | K61: 244.3896188

Sheet MEAP
B1: TYPE THE NAME OF YOUR LAB HERE
B3: PMT LINEARITY QC RECORD | R3: Normalization Graph for Instrument B
J4: TABLE NO. 1 | M4: CROSS CALIBRATION TABLE
B5: PEAK # | C5: CH # | D5: MEAP | E5: MEAP LOG | F5: CALC. | G5: RESIDUAL | H5: CALC. MEAP | J5: 1024 REL. CH# | M5: FOR UNKNOWN SAMPLES | S5: PEAK # | T5: CH # | U5: MEAP | V5: MEAP LOG | W5: CALC. | X5: RESIDUAL | Y5: CALC. MEAP | AA5: CROSS CALIBRATION TABLE
B6: 1 | C6: 50.98613334 | F6: =H$15*C6+H$16 -> 1.091361181 | H6: =10^F6 -> 12.34130771 | J6: to 256 REL. CH# | M6: Sample | N6: CH# | O6: Calc. | P6: Calc. MEAP | S6: 1 | T6: =M50 -> 0 | U6: =O50 -> 0.9739580262 | V6: =LOG10(U6) -> -0.01145975913 | W6: =Y$15*T6+Y$16 ->  | X6: =((ABS(W6-V6))/W6)*10 ->  | Y6: =10^W6 ->  | AA6: FOR NORMALIZATION GRAPH
B7: 2 | C7: 114.2531271 | D7: 288.2802794 | E7: =LOG10(D7) -> 2.459814934 | F7: =H$15*C7+H$16 -> 2.459814934 | G7: =((ABS(F7-E7))/F7) -> 1.805376509e-16 | H7: =10^F7 -> 288.2802794 | J7: CONVERSION | O7: =H$15*N7+H$16 -> -0.01145975913 | P7: =10^O7 -> 0.9739580262 | S7: 2 | T7: 0 | U7: 0.9739580262 | V7: -0.01145975913 | AA7: Sample | AB7: CH# | AC7: Calc. | AD7: Calc. MEAP
B8: 3 | C8: 137.5885123 | D8: 921.6268922 | E8: 2.964555139 | F8: 2.964555139 | G8: 1.497996121e-16 | H8: 921.6268922 | J8: 1024 CH# | K8: 256 CH# | O8: -0.01145975913 | P8: 0.9739580262 | S8: 3 | T8: 0 | U8: 0.9739580262 | V8: -0.01145975913 | AB8: 200 | AC8: =Y$15*AB8+Y$16 ->  | AD8: =10^AC8 -> 
B9: 4 | C9: 160.9748311 | D9: 2953.908438 | E9: 3.470397029 | F9: 3.470397029 | G9: 1.279649579e-16 | H9: 2953.908438 | K9: =J9/4 -> 0 | O9: -0.01145975913 | P9: 0.9739580262 | S9: 4 | T9: 0 | U9: 0.9739580262 | V9: -0.01145975913
B10: 5 | C10: 186.4091029 | D10: 10484.21157 | E10: 4.020535777 | F10: 4.020535777 | G10: 2.209104629e-16 | H10: 10484.21157 | K10: 0 | O10: -0.01145975913 | P10: 0.9739580262 | S10: 5 | T10: 0 | U10: 0.9739580262 | V10: -0.01145975913 | X10: =((ABS(W10-V10))/W10)*10 ->  | Y10: =10^W10 -> 
B11: 6 | C11: 208.5839293 | D11: 31635.39809 | E11: 4.500173304 | F11: 4.500173304 | G11: 3.947307625e-16 | H11: 31635.39809 | K11: 0 | O11: -0.01145975913 | P11: 0.9739580262 | S11: 6 | T11: 0 | U11: 0.9739580262 | V11: -0.01145975913 | X11: =((ABS(W11-V11))/W11)*10 ->  | Y11: =10^W11 -> 
B12: 7 | C12: 229.141079 | D12: 88068.53521 | E12: 4.944820773 | F12: 4.944820773 | G12: 0 | H12: 88068.53521 | K12: 0 | O12: -0.01145975913 | P12: 0.9739580262 | S12: 7 | T12: 0 | U12: 0.9739580262 | V12: -0.01145975913
B13: 8 | C13: 238.4482801 | D13: 140001.8796 | E13: 5.146133866 | F13: 5.146133866 | G13: 0 | H13: 140001.8796 | K13: 0 | O13: -0.01145975913 | P13: 0.9739580262 | S13: 8 | T13: 0 | U13: 0.9739580262 | V13: -0.01145975913
E14: Ave Residual | G14: =AVERAGE(G7:G13) -> 1.534204923e-16 | K14: 0 | O14: -0.01145975913 | P14: 0.9739580262 | V14: Ave Residual | X14: =AVERAGE(X6:X13) -> 
G15: Slope: | H15: =SLOPE(E7:E13,C7:C13) -> 0.02162982104 | K15: 0 | O15: -0.01145975913 | P15: 0.9739580262 | X15: Slope: | Y15: =SLOPE(V6:V13,T6:T13) -> 
G16: Intercept: | H16: =INTERCEPT(E7:E13,C7:C13) -> -0.01145975913 | K16: 0 | O16: -0.01145975913 | P16: 0.9739580262 | X16: Intercept: | Y16: =INTERCEPT(V6:V13,T6:T13) -> 
G17: Rsq: | H17: =RSQ(E7:E13,C7:C13) -> 1 | O17: -0.01145975913 | P17: 0.9739580262 | X17: Rsq: | Y17: =RSQ(V6:V13,T6:T13) -> 
O18: -0.01145975913 | P18: 0.9739580262
J19: TABLE NO. 2
J20: 1024 MEAN CH# | M20: CONVERTED VALUES
J21: to 256 REL. CH# | M21: CAN BE COPIED TO
J22: CONVERSION | M22: THE CH# COLUMN BY
J23: 1024 CH# | K23: 256 CH# | M23: SELECTING THE CELLS
K24: =LOG10(J24*10)*(64) ->  | M24: TO BE COPIED; THEN,
M25: CLICKING [COPY],
M26: [PASTE SPECIAL], AND
M27: FINALLY [PASTE VALUE]
J34: TABLE NO. 3 | M34: TABLE NO. 5
J35: 104 MEAN CH# | M35: Determination of the
J36: to 256 REL. CH# | M36: MEAP/CH# for the
J37: CONVERSION | M37: normalization cell or particle
J38: 104 CH# | K38: 256 CH# | M38: 256 CH# | N38: 104 CH# | O38: Calc. MEAP | P38: MEAP/CH#
K39: =LOG10(J39)*(64) ->  | M39: =N7 -> 0 | N39: =10^(4*(M39/256)) -> 1 | O39: =P7 -> 0.9739580262 | P39: =O39/N39 -> 0.9739580262
M40: =N8 -> 0 | N40: =10^(4*(M40/256)) -> 1 | O40: =P8 -> 0.9739580262 | P40: =O40/N40 -> 0.9739580262
M41: =N9 -> 0 | N41: =10^(4*(M41/256)) -> 1 | O41: =P9 -> 0.9739580262 | P41: =O41/N41 -> 0.9739580262
M42: =N10 -> 0 | N42: =10^(4*(M42/256)) -> 1 | O42: =P10 -> 0.9739580262 | P42: =O42/N42 -> 0.9739580262
M43: =N11 -> 0 | N43: =10^(4*(M43/256)) -> 1 | O43: =P11 -> 0.9739580262 | P43: =O43/N43 -> 0.9739580262
M45: TABLE NO. 6
A46: Rainbow Calibration Particles (RCP-30-5A) | E46: Lot No.: | G46: File # | M46: Determination of New MEAP
A47: Acceptable: | M47: values for RCP-30-5A
A49: Action taken if not linear: | D49: By: | G49: Date: | J49: TABLE NO. 4 | M49: 256 CH# | N49: 104 CH# | O49: New MEAP
J50: 105 MEAN CH# | N50: =10^(4*(M50/256)) -> 1 | O50: =P39*N50 -> 0.9739580262
J51: to 256 REL. CH# | N51: 1 | O51: =P39*N51 -> 0.9739580262
J52: CONVERSION | N52: 1 | O52: =P39*N52 -> 0.9739580262
J53: 105 CH# | K53: 256 CH# | N53: 1 | O53: =P39*N53 -> 0.9739580262
J54: 39 | K54: =LOG10(J54)*(256/LOG10(262144)) -> 75.17016489 | N54: 1 | O54: =P39*N54 -> 0.9739580262
J55: 311 | K55: =LOG10(J55)*(256/LOG10(262144)) -> 117.7709621 | N55: 1 | O55: =P39*N55 -> 0.9739580262
J56: 746 | K56: 135.7231192 | N56: 1 | O56: =P39*N56 -> 0.9739580262
J57: 2854 | K57: 163.2536124 | N57: 1 | O57: =P39*N57 -> 0.9739580262
J58: 9044 | K58: 186.9190439
J59: 25985 | K59: 208.574456
J60: 80493 | K60: 231.7735211
J61: 169790 | K61: 247.0882413

Sheet MEAPCY7
B1: TYPE THE NAME OF YOUR LAB HERE
B3: PMT LINEARITY QC RECORD | R3: Normalization Graph for Instrument B
J4: TABLE NO. 1 | M4: CROSS CALIBRATION TABLE
B5: PEAK # | C5: CH # | D5: MEAPCY7 | E5: MEAPCY7 LOG | F5: CALC. | G5: RESIDUAL | H5: CALC. MEAPCY7 | J5: 1024 REL. CH# | M5: FOR UNKNOWN SAMPLES | S5: PEAK # | T5: CH # | U5: MEAPCY7 | V5: MEAPCY7 LOG | W5: CALC. | X5: RESIDUAL | Y5: CALC. MEAPCY7 | AA5: CROSS CALIBRATION TABLE
B6: 1 | C6: 14.22222222 | F6: =H$15*C6+H$16 -> 0.2502884033 | J6: to 256 REL. CH# | M6: Sample | N6: CH# | O6: Calc. | P6: Calc. MEAPCY7 | S6: 1 | T6: =M50 -> 0 | U6: =O50 -> 0.961660716 | V6: =LOG10(U6) -> -0.01697812459 | W6: =Y$15*T6+Y$16 ->  | X6: =((ABS(W6-V6))/W6)*10 ->  | Y6: =10^W6 ->  | AA6: FOR NORMALIZATION GRAPH
B7: 2 | C7: 113.5359086 | D7: 130.8003332 | E7: =LOG10(D7) -> 2.11660885 | F7: 2.11660885 | G7: =((ABS(F7-E7))/F7) -> 0 | H7: =10^F7 -> 130.8003332 | J7: CONVERSION | O7: =H$15*N7+H$16 -> -0.01697812459 | P7: =10^O7 -> 0.961660716 | S7: 2 | T7: 0 | U7: 0.961660716 | V7: -0.01697812459 | AA7: Sample | AB7: CH# | AC7: Calc. | AD7: Calc. MEAPCY7
B8: 3 | C8: 136.6112643 | D8: 355.0136362 | E8: 2.550245035 | F8: 2.550245035 | G8: 1.741358982e-16 | H8: 355.0136362 | J8: 1024 CH# | K8: 256 CH# | O8: -0.01697812459 | P8: 0.961660716 | S8: 3 | T8: 0 | U8: 0.961660716 | V8: -0.01697812459 | AB8: 200 | AC8: =Y$15*AB8+Y$16 ->  | AD8: =10^AC8 -> 
B9: 4 | C9: 160.1970634 | D9: 985.0846785 | E9: 2.993473564 | F9: 2.993473564 | G9: 1.483524742e-16 | H9: 985.0846785 | K9: =J9/4 -> 0 | O9: -0.01697812459 | P9: 0.961660716 | S9: 4 | T9: 0 | U9: 0.961660716 | V9: -0.01697812459
B10: 5 | C10: 185.7761208 | D10: 2979.612291 | E10: 3.474159757 | F10: 3.474159757 | G10: 1.27826364e-16 | H10: 2979.612291 | K10: 0 | O10: -0.01697812459 | P10: 0.961660716 | S10: 5 | T10: 0 | U10: 0.961660716 | V10: -0.01697812459
B11: 6 | C11: 208.2914072 | D11: 7893.525591 | E11: 3.897271021 | F11: 3.897271021 | G11: 1.139487625e-16 | H11: 7893.525591 | K11: 0 | O11: -0.01697812459 | P11: 0.961660716 | S11: 6 | T11: 0 | U11: 0.961660716 | V11: -0.01697812459
B12: 7 | C12: 229.5317576 | D12: 19788.98234 | E12: 4.296423461 | F12: 4.296423461 | G12: 2.067250651e-16 | H12: 19788.98234 | K12: 0 | O12: -0.01697812459 | P12: 0.961660716 | S12: 7 | T12: 0 | U12: 0.961660716 | V12: -0.01697812459
B13: 8 | C13: 239.9309931 | D13: 31034.71371 | E13: 4.491847743 | F13: 4.491847743 | G13: 0 | H13: 31034.71371 | K13: 0 | O13: -0.01697812459 | P13: 0.961660716 | S13: 8 | T13: 0 | U13: 0.961660716 | V13: -0.01697812459
E14: Ave Residual | G14: =AVERAGE(G8:G13) -> 1.28498094e-16 | K14: 0 | O14: -0.01697812459 | P14: 0.961660716 | V14: Ave Residual | X14: =AVERAGE(X6:X13) -> 
G15: Slope: | H15: =SLOPE(E8:E13,C8:C13) -> 0.01879217774 | K15: 0 | O15: -0.01697812459 | P15: 0.961660716 | X15: Slope: | Y15: =SLOPE(V6:V13,T6:T13) -> 
G16: Intercept: | H16: =INTERCEPT(E8:E13,C8:C13) -> -0.01697812459 | K16: 0 | O16: -0.01697812459 | P16: 0.961660716 | X16: Intercept: | Y16: =INTERCEPT(V6:V13,T6:T13) -> 
G17: Rsq: | H17: =RSQ(E8:E13,C8:C13) -> 1 | O17: -0.01697812459 | P17: 0.961660716 | X17: Rsq: | Y17: =RSQ(V6:V13,T6:T13) -> 
O18: -0.01697812459 | P18: 0.961660716
J19: TABLE NO. 2
J20: 1024 MEAN CH# | M20: CONVERTED VALUES
J21: to 256 REL. CH# | M21: CAN BE COPIED TO
J22: CONVERSION | M22: THE CH# COLUMN BY
J23: 1024 CH# | K23: 256 CH# | M23: SELECTING THE CELLS
K24: =LOG10(J24*10)*(64) ->  | M24: TO BE COPIED; THEN,
M25: CLICKING [COPY],
M26: [PASTE SPECIAL], AND
M27: FINALLY [PASTE VALUE]
J34: TABLE NO. 3 | M34: TABLE NO. 5
J35: 104 MEAN CH# | M35: Determination of the
J36: to 256 REL. CH# | M36: MEAPCY7/CH# for the
J37: CONVERSION | M37: normalization cell or particle
J38: 104 CH# | K38: 256 CH# | M38: 256 CH# | N38: 104 CH# | O38: Calc. MEAPCY7 | P38: MEAPCY7/CH#
K39: =LOG10(J39)*(64) ->  | M39: =N7 -> 0 | N39: =10^(4*(M39/256)) -> 1 | O39: =P7 -> 0.961660716 | P39: =O39/N39 -> 0.961660716
M40: =N8 -> 0 | N40: =10^(4*(M40/256)) -> 1 | O40: =P8 -> 0.961660716 | P40: =O40/N40 -> 0.961660716
M41: =N9 -> 0 | N41: =10^(4*(M41/256)) -> 1 | O41: =P9 -> 0.961660716 | P41: =O41/N41 -> 0.961660716
M42: =N10 -> 0 | N42: =10^(4*(M42/256)) -> 1 | O42: =P10 -> 0.961660716 | P42: =O42/N42 -> 0.961660716
M43: =N11 -> 0 | N43: =10^(4*(M43/256)) -> 1 | O43: =P11 -> 0.961660716 | P43: =O43/N43 -> 0.961660716
M45: TABLE NO. 6
A46: Rainbow Calibration Particles (RCP-30-5A) | E46: Lot No.: | G46: File # | M46: Determination of New MEAPCY7
A47: Acceptable: | M47: values for RCP-30-5A
A49: Action taken if not linear: | D49: By: | G49: Date: | J49: TABLE NO. 4 | M49: 256 CH# | N49: 104 CH# | O49: New MEAPCY7
J50: 105 MEAN CH# | N50: =10^(4*(M50/256)) -> 1 | O50: =P39*N50 -> 0.961660716
J51: to 256 REL. CH# | N51: 1 | O51: =P39*N51 -> 0.961660716
J52: CONVERSION | N52: 1 | O52: =P39*N52 -> 0.961660716
J53: 105 CH# | K53: 256 CH# | N53: 1 | O53: =P39*N53 -> 0.961660716
J54: 1 | K54: =LOG10(J54)*(256/LOG10(262144)) -> 0 | N54: 1 | O54: =P39*N54 -> 0.961660716
J55: 228 | K55: 111.4011024 | N55: 1 | O55: =P39*N55 -> 0.961660716
J56: 606 | K56: 131.4584744 | N56: 1 | O56: =P39*N56 -> 0.961660716
J57: 2299 | K57: 158.8165796 | N57: 1 | O57: =P39*N57 -> 0.961660716
J58: 7224 | K58: 182.3087243
J59: 21540 | K59: 204.7250578
J60: 69266 | K60: 228.6913386
J61: 158340 | K61: 245.6556975
